{"text_format":"3","workbook":"xlsx","n_sheets":4,"sheets":["AASTAEELARVE KOKKUVÕTE","KUUVÄLJAMINEKUTE KOKKUVÕTE","KULUARTIKLID","HEATEGEVUS JA SPONSORLUS"],"not_rendered":{"defined_names":15},"read":"whole","date_system":"1900"}

{"sheet":"AASTAEELARVE KOKKUVÕTE","index":0,"n_rows":17,"n_cols":7,"rows_kept":17,"merged":[[1,1,1,4]]}
[null,"KUUVÄLJAMINEKUTE KOKKUVÕTE"]
[null,"TEGELIK ja EELARVE (aasta algusest tänaseni)",{"$nulls":3},"aasta",{"$f":"YEAR(TODAY())","v":2019}]
[]
[null,"PR kood","Konto nimi","Tegelik","Eelarve","Järel €","Järel %"]
[null,1000,"Reklaam",{"$f":"SUMIF(Kuuväljaminekute_kokkuvõte[PR kood],Aastaeelarvetabel[[#This Row],[PR kood]],Kuuväljaminekute_kokkuvõte[Kokku])","v":{"v":0,"d":"0.00 €"}},{"v":100000,"d":"100,000.00 €"},{"$f":"IF(Aastaeelarvetabel[[#This Row],[Eelarve]]=\"\",\"\",Aastaeelarvetabel[[#This Row],[Eelarve]]-Aastaeelarvetabel[[#This Row],[Tegelik]])","v":{"v":100000,"d":"100,000.00 €"}},{"$f":"IFERROR(Aastaeelarvetabel[[#This Row],[Järel €]]/Aastaeelarvetabel[[#This Row],[Eelarve]],\"\")","v":{"v":1,"d":"100.00%"}}]
[null,2000,"Kontoriseadmed",{"$f":"SUMIF(Kuuväljaminekute_kokkuvõte[PR kood],Aastaeelarvetabel[[#This Row],[PR kood]],Kuuväljaminekute_kokkuvõte[Kokku])","v":{"v":0,"d":"0.00 €"}},{"v":100000,"d":"100,000.00 €"},{"$f":"IF(Aastaeelarvetabel[[#This Row],[Eelarve]]=\"\",\"\",Aastaeelarvetabel[[#This Row],[Eelarve]]-Aastaeelarvetabel[[#This Row],[Tegelik]])","v":{"v":100000,"d":"100,000.00 €"}},{"$f":"IFERROR(Aastaeelarvetabel[[#This Row],[Järel €]]/Aastaeelarvetabel[[#This Row],[Eelarve]],\"\")","v":{"v":1,"d":"100.00%"}}]
[null,3000,"Printerid",{"$f":"SUMIF(Kuuväljaminekute_kokkuvõte[PR kood],Aastaeelarvetabel[[#This Row],[PR kood]],Kuuväljaminekute_kokkuvõte[Kokku])","v":{"v":0,"d":"0.00 €"}},{"v":100000,"d":"100,000.00 €"},{"$f":"IF(Aastaeelarvetabel[[#This Row],[Eelarve]]=\"\",\"\",Aastaeelarvetabel[[#This Row],[Eelarve]]-Aastaeelarvetabel[[#This Row],[Tegelik]])","v":{"v":100000,"d":"100,000.00 €"}},{"$f":"IFERROR(Aastaeelarvetabel[[#This Row],[Järel €]]/Aastaeelarvetabel[[#This Row],[Eelarve]],\"\")","v":{"v":1,"d":"100.00%"}}]
[null,4000,"Serveri kulud",{"$f":"SUMIF(Kuuväljaminekute_kokkuvõte[PR kood],Aastaeelarvetabel[[#This Row],[PR kood]],Kuuväljaminekute_kokkuvõte[Kokku])","v":{"v":0,"d":"0.00 €"}},{"v":100000,"d":"100,000.00 €"},{"$f":"IF(Aastaeelarvetabel[[#This Row],[Eelarve]]=\"\",\"\",Aastaeelarvetabel[[#This Row],[Eelarve]]-Aastaeelarvetabel[[#This Row],[Tegelik]])","v":{"v":100000,"d":"100,000.00 €"}},{"$f":"IFERROR(Aastaeelarvetabel[[#This Row],[Järel €]]/Aastaeelarvetabel[[#This Row],[Eelarve]],\"\")","v":{"v":1,"d":"100.00%"}}]
[null,5000,"Tarbeesemed",{"$f":"SUMIF(Kuuväljaminekute_kokkuvõte[PR kood],Aastaeelarvetabel[[#This Row],[PR kood]],Kuuväljaminekute_kokkuvõte[Kokku])","v":{"v":0,"d":"0.00 €"}},{"v":50000,"d":"50,000.00 €"},{"$f":"IF(Aastaeelarvetabel[[#This Row],[Eelarve]]=\"\",\"\",Aastaeelarvetabel[[#This Row],[Eelarve]]-Aastaeelarvetabel[[#This Row],[Tegelik]])","v":{"v":50000,"d":"50,000.00 €"}},{"$f":"IFERROR(Aastaeelarvetabel[[#This Row],[Järel €]]/Aastaeelarvetabel[[#This Row],[Eelarve]],\"\")","v":{"v":1,"d":"100.00%"}}]
[null,6000,"Kliendi kulud",{"$f":"SUMIF(Kuuväljaminekute_kokkuvõte[PR kood],Aastaeelarvetabel[[#This Row],[PR kood]],Kuuväljaminekute_kokkuvõte[Kokku])","v":{"v":0,"d":"0.00 €"}},{"v":25000,"d":"25,000.00 €"},{"$f":"IF(Aastaeelarvetabel[[#This Row],[Eelarve]]=\"\",\"\",Aastaeelarvetabel[[#This Row],[Eelarve]]-Aastaeelarvetabel[[#This Row],[Tegelik]])","v":{"v":25000,"d":"25,000.00 €"}},{"$f":"IFERROR(Aastaeelarvetabel[[#This Row],[Järel €]]/Aastaeelarvetabel[[#This Row],[Eelarve]],\"\")","v":{"v":1,"d":"100.00%"}}]
[null,7000,"Arvutid",{"$f":"SUMIF(Kuuväljaminekute_kokkuvõte[PR kood],Aastaeelarvetabel[[#This Row],[PR kood]],Kuuväljaminekute_kokkuvõte[Kokku])","v":{"v":0,"d":"0.00 €"}},{"v":75000,"d":"75,000.00 €"},{"$f":"IF(Aastaeelarvetabel[[#This Row],[Eelarve]]=\"\",\"\",Aastaeelarvetabel[[#This Row],[Eelarve]]-Aastaeelarvetabel[[#This Row],[Tegelik]])","v":{"v":75000,"d":"75,000.00 €"}},{"$f":"IFERROR(Aastaeelarvetabel[[#This Row],[Järel €]]/Aastaeelarvetabel[[#This Row],[Eelarve]],\"\")","v":{"v":1,"d":"100.00%"}}]
[null,8000,"Meditsiiniline leping",{"$f":"SUMIF(Kuuväljaminekute_kokkuvõte[PR kood],Aastaeelarvetabel[[#This Row],[PR kood]],Kuuväljaminekute_kokkuvõte[Kokku])","v":{"v":0,"d":"0.00 €"}},{"v":65000,"d":"65,000.00 €"},{"$f":"IF(Aastaeelarvetabel[[#This Row],[Eelarve]]=\"\",\"\",Aastaeelarvetabel[[#This Row],[Eelarve]]-Aastaeelarvetabel[[#This Row],[Tegelik]])","v":{"v":65000,"d":"65,000.00 €"}},{"$f":"IFERROR(Aastaeelarvetabel[[#This Row],[Järel €]]/Aastaeelarvetabel[[#This Row],[Eelarve]],\"\")","v":{"v":1,"d":"100.00%"}}]
[null,9000,"Hoone kulud",{"$f":"SUMIF(Kuuväljaminekute_kokkuvõte[PR kood],Aastaeelarvetabel[[#This Row],[PR kood]],Kuuväljaminekute_kokkuvõte[Kokku])","v":{"v":0,"d":"0.00 €"}},{"v":125000,"d":"125,000.00 €"},{"$f":"IF(Aastaeelarvetabel[[#This Row],[Eelarve]]=\"\",\"\",Aastaeelarvetabel[[#This Row],[Eelarve]]-Aastaeelarvetabel[[#This Row],[Tegelik]])","v":{"v":125000,"d":"125,000.00 €"}},{"$f":"IFERROR(Aastaeelarvetabel[[#This Row],[Järel €]]/Aastaeelarvetabel[[#This Row],[Eelarve]],\"\")","v":{"v":1,"d":"100.00%"}}]
[null,10000,"Turundustegevus",{"$f":"SUMIF(Kuuväljaminekute_kokkuvõte[PR kood],Aastaeelarvetabel[[#This Row],[PR kood]],Kuuväljaminekute_kokkuvõte[Kokku])","v":{"v":0,"d":"0.00 €"}},{"v":100000,"d":"100,000.00 €"},{"$f":"IF(Aastaeelarvetabel[[#This Row],[Eelarve]]=\"\",\"\",Aastaeelarvetabel[[#This Row],[Eelarve]]-Aastaeelarvetabel[[#This Row],[Tegelik]])","v":{"v":100000,"d":"100,000.00 €"}},{"$f":"IFERROR(Aastaeelarvetabel[[#This Row],[Järel €]]/Aastaeelarvetabel[[#This Row],[Eelarve]],\"\")","v":{"v":1,"d":"100.00%"}}]
[null,11000,"Heategevus",{"$f":"SUMIF(Kuuväljaminekute_kokkuvõte[PR kood],Aastaeelarvetabel[[#This Row],[PR kood]],Kuuväljaminekute_kokkuvõte[Kokku])","v":{"v":0,"d":"0.00 €"}},{"v":250000,"d":"250,000.00 €"},{"$f":"IF(Aastaeelarvetabel[[#This Row],[Eelarve]]=\"\",\"\",Aastaeelarvetabel[[#This Row],[Eelarve]]-Aastaeelarvetabel[[#This Row],[Tegelik]])","v":{"v":250000,"d":"250,000.00 €"}},{"$f":"IFERROR(Aastaeelarvetabel[[#This Row],[Järel €]]/Aastaeelarvetabel[[#This Row],[Eelarve]],\"\")","v":{"v":1,"d":"100.00%"}}]
[null,12000,"Sponsorlus",{"$f":"SUMIF(Kuuväljaminekute_kokkuvõte[PR kood],Aastaeelarvetabel[[#This Row],[PR kood]],Kuuväljaminekute_kokkuvõte[Kokku])","v":{"v":0,"d":"0.00 €"}},{"v":50000,"d":"50,000.00 €"},{"$f":"IF(Aastaeelarvetabel[[#This Row],[Eelarve]]=\"\",\"\",Aastaeelarvetabel[[#This Row],[Eelarve]]-Aastaeelarvetabel[[#This Row],[Tegelik]])","v":{"v":50000,"d":"50,000.00 €"}},{"$f":"IFERROR(Aastaeelarvetabel[[#This Row],[Järel €]]/Aastaeelarvetabel[[#This Row],[Eelarve]],\"\")","v":{"v":1,"d":"100.00%"}}]
[null,"Kokku",null,{"$f":"SUBTOTAL(109,Aastaeelarvetabel[Tegelik])","v":{"v":0,"d":"0.00 €"}},{"$f":"SUBTOTAL(109,Aastaeelarvetabel[Eelarve])","v":{"v":1140000,"d":"1,140,000.00 €"}},{"$f":"SUBTOTAL(109,Aastaeelarvetabel[Järel €])","v":{"v":1140000,"d":"1,140,000.00 €"}},{"$f":"Aastaeelarvetabel[[#Totals],[Järel €]]/Aastaeelarvetabel[[#Totals],[Eelarve]]","v":{"v":1,"d":"100.00%"}}]

{"sheet":"KUUVÄLJAMINEKUTE KOKKUVÕTE","index":1,"n_rows":18,"n_cols":17,"rows_kept":18,"merged":[[1,1,1,16]]}
[null,"AASTAEELARVE KOKKUVÕTE","KULUARTKLID"]
[null,"KUU VÄLJAMINEKUTE KOKKUVÕTE"]
[null,"Selles lahtris on tükeldi andmete filtreerimiseks konto nime järgi.",null,{"$f":"DATEVALUE(\"1-JAAN\"&_AASTA)","v":{"v":43466,"d":"4346600.00%"}},{"$f":"DATEVALUE(\"1-VEEBR\"&_AASTA)","v":{"v":43497,"d":"4349700.00%"}},{"$f":"DATEVALUE(\"1-MÄRTS\"&_AASTA)","v":{"v":43525,"d":"4352500.00%"}},{"$f":"DATEVALUE(\"1-APR\"&_AASTA)","v":{"v":43556,"d":"4355600.00%"}},{"$f":"DATEVALUE(\"1-MAI\"&_AASTA)","v":{"v":43586,"d":"4358600.00%"}},{"$f":"DATEVALUE(\"1-JUUNI\"&_AASTA)","v":{"v":43617,"d":"4361700.00%"}},{"$f":"DATEVALUE(\"1-JUULI\"&_AASTA)","v":{"v":43647,"d":"4364700.00%"}},{"$f":"DATEVALUE(\"1-AUG\"&_AASTA)","v":{"v":43678,"d":"4367800.00%"}},{"$f":"DATEVALUE(\"1-SEPT\"&_AASTA)","v":{"v":43709,"d":"4370900.00%"}},{"$f":"DATEVALUE(\"1-OKT\"&_AASTA)","v":{"v":43739,"d":"4373900.00%"}},{"$f":"DATEVALUE(\"1NOV\"&_AASTA)","v":{"v":43770,"d":"4377000.00%"}},{"$f":"DATEVALUE(\"1-DETS\"&_AASTA)","v":{"v":43800,"d":"4380000.00%"}}]
[{"$nulls":3},{"$f":"EOMONTH(D3,0)","v":{"v":43496,"d":"4349600.00%"}},{"$f":"EOMONTH(E3,0)","v":{"v":43524,"d":"4352400.00%"}},{"$f":"EOMONTH(F3,0)","v":{"v":43555,"d":"4355500.00%"}},{"$f":"EOMONTH(G3,0)","v":{"v":43585,"d":"4358500.00%"}},{"$f":"EOMONTH(H3,0)","v":{"v":43616,"d":"4361600.00%"}},{"$f":"EOMONTH(I3,0)","v":{"v":43646,"d":"4364600.00%"}},{"v":43677,"d":"4367700.00%"},{"v":43708,"d":"4370800.00%"},{"v":43738,"d":"4373800.00%"},{"v":43769,"d":"4376900.00%"},{"v":43799,"d":"4379900.00%"},{"v":43830,"d":"4383000.00%"}]
[null,"PR kood","Konto nimi","Jaanuar","Veebruar","Märts","Aprill","Mai","Juuni","Juuli","August","September","Oktoober","November","Detsember","Kokku"," "]
[null,1000,"Reklaam",{"$f":"SUMIFS(Kuluartiklid[Tšeki summa],Kuluartiklid[PR kood],Kuuväljaminekute_kokkuvõte[[#This Row],[PR kood]],Kuluartiklid[Arve kuupäev],\">=\"&D$3,Kuluartiklid[Arve kuupäev],\"<=\"&D$4)+SUMIFS(Muu[Tšeki summa],Muu[PR kood],Kuuväljaminekute_kokkuvõte[[#This Row],[PR kood]],Muu[Tšeki taotluse alustamise kuupäev],\">=\"&DATEVALUE(\" 1 \"&Kuuväljaminekute_kokkuvõte[[#Headers],[Jaanuar]]&_xlfn.SINGLE(_AASTA)),Muu[Tšeki taotluse alustamise kuupäev],\"<=\"&D$4)","v":{"v":0,"d":"0.00 €"}},{"$f":"SUMIFS(Kuluartiklid[Tšeki summa],Kuluartiklid[PR kood],Kuuväljaminekute_kokkuvõte[[#This Row],[PR kood]],Kuluartiklid[Arve kuupäev],\">=\"&E$3,Kuluartiklid[Arve kuupäev],\"<=\"&E$4)+SUMIFS(Muu[Tšeki summa],Muu[PR kood],Kuuväljaminekute_kokkuvõte[[#This Row],[PR kood]],Muu[Tšeki taotluse alustamise kuupäev],\">=\"&DATEVALUE(\" 1 \"&Kuuväljaminekute_kokkuvõte[[#Headers],[Veebruar]]&_xlfn.SINGLE(_AASTA)),Muu[Tšeki taotluse alustamise kuupäev],\"<=\"&E$4)","v":{"v":0,"d":"0.00 €"}},{"$f":"SUMIFS(Kuluartiklid[Tšeki summa],Kuluartiklid[PR kood],Kuuväljaminekute_kokkuvõte[[#This Row],[PR kood]],Kuluartiklid[Arve kuupäev],\">=\"&F$3,Kuluartiklid[Arve kuupäev],\"<=\"&F$4)+SUMIFS(Muu[Tšeki summa],Muu[PR kood],Kuuväljaminekute_kokkuvõte[[#This Row],[PR kood]],Muu[Tšeki taotluse alustamise kuupäev],\">=\"&DATEVALUE(\" 1 \"&Kuuväljaminekute_kokkuvõte[[#Headers],[Märts]]&_xlfn.SINGLE(_AASTA)),Muu[Tšeki taotluse alustamise kuupäev],\"<=\"&F$4)","v":{"v":0,"d":"0.00 €"}},{"$f":"SUMIFS(Kuluartiklid[Tšeki summa],Kuluartiklid[PR kood],Kuuväljaminekute_kokkuvõte[[#This Row],[PR kood]],Kuluartiklid[Arve kuupäev],\">=\"&G$3,Kuluartiklid[Arve kuupäev],\"<=\"&G$4)+SUMIFS(Muu[Tšeki summa],Muu[PR kood],Kuuväljaminekute_kokkuvõte[[#This Row],[PR kood]],Muu[Tšeki taotluse alustamise kuupäev],\">=\"&DATEVALUE(\" 1 \"&Kuuväljaminekute_kokkuvõte[[#Headers],[Aprill]]&_xlfn.SINGLE(_AASTA)),Muu[Tšeki taotluse alustamise kuupäev],\"<=\"&G$4)","v":{"v":0,"d":"0.00 €"}},{"$f":"SUMIFS(Kuluartiklid[Tšeki summa],Kuluartiklid[PR kood],Kuuväljaminekute_kokkuvõte[[#This Row],[PR kood]],Kuluartiklid[Arve kuupäev],\">=\"&H$3,Kuluartiklid[Arve kuupäev],\"<=\"&H$4)+SUMIFS(Muu[Tšeki summa],Muu[PR kood],Kuuväljaminekute_kokkuvõte[[#This Row],[PR kood]],Muu[Tšeki taotluse alustamise kuupäev],\">=\"&DATEVALUE(\" 1 \"&Kuuväljaminekute_kokkuvõte[[#Headers],[Mai]]&_xlfn.SINGLE(_AASTA)),Muu[Tšeki taotluse alustamise kuupäev],\"<=\"&H$4)","v":{"v":0,"d":"0.00 €"}},{"$f":"SUMIFS(Kuluartiklid[Tšeki summa],Kuluartiklid[PR kood],Kuuväljaminekute_kokkuvõte[[#This Row],[PR kood]],Kuluartiklid[Arve kuupäev],\">=\"&I$3,Kuluartiklid[Arve kuupäev],\"<=\"&I$4)+SUMIFS(Muu[Tšeki summa],Muu[PR kood],Kuuväljaminekute_kokkuvõte[[#This Row],[PR kood]],Muu[Tšeki taotluse alustamise kuupäev],\">=\"&DATEVALUE(\" 1 \"&Kuuväljaminekute_kokkuvõte[[#Headers],[Juuni]]&_xlfn.SINGLE(_AASTA)),Muu[Tšeki taotluse alustamise kuupäev],\"<=\"&I$4)","v":{"v":0,"d":"0.00 €"}},{"$f":"SUMIFS(Kuluartiklid[Tšeki summa],Kuluartiklid[PR kood],Kuuväljaminekute_kokkuvõte[[#This Row],[PR kood]],Kuluartiklid[Arve kuupäev],\">=\"&J$3,Kuluartiklid[Arve kuupäev],\"<=\"&J$4)+SUMIFS(Muu[Tšeki summa],Muu[PR kood],Kuuväljaminekute_kokkuvõte[[#This Row],[PR kood]],Muu[Tšeki taotluse alustamise kuupäev],\">=\"&DATEVALUE(\" 1 \"&Kuuväljaminekute_kokkuvõte[[#Headers],[Juuli]]&_xlfn.SINGLE(_AASTA)),Muu[Tšeki taotluse alustamise kuupäev],\"<=\"&J$4)","v":{"v":0,"d":"0.00 €"}},{"$f":"SUMIFS(Kuluartiklid[Tšeki summa],Kuluartiklid[PR kood],Kuuväljaminekute_kokkuvõte[[#This Row],[PR kood]],Kuluartiklid[Arve kuupäev],\">=\"&K$3,Kuluartiklid[Arve kuupäev],\"<=\"&K$4)+SUMIFS(Muu[Tšeki summa],Muu[PR kood],Kuuväljaminekute_kokkuvõte[[#This Row],[PR kood]],Muu[Tšeki taotluse alustamise kuupäev],\">=\"&DATEVALUE(\" 1 \"&Kuuväljaminekute_kokkuvõte[[#Headers],[August]]&_xlfn.SINGLE(_AASTA)),Muu[Tšeki taotluse alustamise kuupäev],\"<=\"&K$4)","v":{"v":0,"d":"0.00 €"}},{"$f":"SUMIFS(Kuluartiklid[Tšeki summa],Kuluartiklid[PR kood],Kuuväljaminekute_kokkuvõte[[#This Row],[PR kood]],Kuluartiklid[Arve kuupäev],\">=\"&L$3,Kuluartiklid[Arve kuupäev],\"<=\"&L$4)+SUMIFS(Muu[Tšeki summa],Muu[PR kood],Kuuväljaminekute_kokkuvõte[[#This Row],[PR kood]],Muu[Tšeki taotluse alustamise kuupäev],\">=\"&DATEVALUE(\" 1 \"&Kuuväljaminekute_kokkuvõte[[#Headers],[September]]&_xlfn.SINGLE(_AASTA)),Muu[Tšeki taotluse alustamise kuupäev],\"<=\"&L$4)","v":{"v":0,"d":"0.00 €"}},{"$f":"SUMIFS(Kuluartiklid[Tšeki summa],Kuluartiklid[PR kood],Kuuväljaminekute_kokkuvõte[[#This Row],[PR kood]],Kuluartiklid[Arve kuupäev],\">=\"&M$3,Kuluartiklid[Arve kuupäev],\"<=\"&M$4)+SUMIFS(Muu[Tšeki summa],Muu[PR kood],Kuuväljaminekute_kokkuvõte[[#This Row],[PR kood]],Muu[Tšeki taotluse alustamise kuupäev],\">=\"&DATEVALUE(\" 1 \"&Kuuväljaminekute_kokkuvõte[[#Headers],[Oktoober]]&_xlfn.SINGLE(_AASTA)),Muu[Tšeki taotluse alustamise kuupäev],\"<=\"&M$4)","v":{"v":0,"d":"0.00 €"}},{"$f":"SUMIFS(Kuluartiklid[Tšeki summa],Kuluartiklid[PR kood],Kuuväljaminekute_kokkuvõte[[#This Row],[PR kood]],Kuluartiklid[Arve kuupäev],\">=\"&N$3,Kuluartiklid[Arve kuupäev],\"<=\"&N$4)+SUMIFS(Muu[Tšeki summa],Muu[PR kood],Kuuväljaminekute_kokkuvõte[[#This Row],[PR kood]],Muu[Tšeki taotluse alustamise kuupäev],\">=\"&DATEVALUE(\" 1 \"&Kuuväljaminekute_kokkuvõte[[#Headers],[November]]&_xlfn.SINGLE(_AASTA)),Muu[Tšeki taotluse alustamise kuupäev],\"<=\"&N$4)","v":{"v":0,"d":"0.00 €"}},{"$f":"SUMIFS(Kuluartiklid[Tšeki summa],Kuluartiklid[PR kood],Kuuväljaminekute_kokkuvõte[[#This Row],[PR kood]],Kuluartiklid[Arve kuupäev],\">=\"&O$3,Kuluartiklid[Arve kuupäev],\"<=\"&O$4)+SUMIFS(Muu[Tšeki summa],Muu[PR kood],Kuuväljaminekute_kokkuvõte[[#This Row],[PR kood]],Muu[Tšeki taotluse alustamise kuupäev],\">=\"&DATEVALUE(\" 1 \"&Kuuväljaminekute_kokkuvõte[[#Headers],[Detsember]]&_xlfn.SINGLE(_AASTA)),Muu[Tšeki taotluse alustamise kuupäev],\"<=\"&O$4)","v":{"v":0,"d":"0.00 €"}},{"$f":"SUM(Kuuväljaminekute_kokkuvõte[[#This Row],[Jaanuar]:[Detsember]])","v":{"v":0,"d":"0.00 €"}}]
[null,2000,"Kontoriseadmed",{"$f":"SUMIFS(Kuluartiklid[Tšeki summa],Kuluartiklid[PR kood],Kuuväljaminekute_kokkuvõte[[#This Row],[PR kood]],Kuluartiklid[Arve kuupäev],\">=\"&D$3,Kuluartiklid[Arve kuupäev],\"<=\"&D$4)+SUMIFS(Muu[Tšeki summa],Muu[PR kood],Kuuväljaminekute_kokkuvõte[[#This Row],[PR kood]],Muu[Tšeki taotluse alustamise kuupäev],\">=\"&DATEVALUE(\" 1 \"&Kuuväljaminekute_kokkuvõte[[#Headers],[Jaanuar]]&_xlfn.SINGLE(_AASTA)),Muu[Tšeki taotluse alustamise kuupäev],\"<=\"&D$4)","v":{"v":0,"d":"0.00 €"}},{"$f":"SUMIFS(Kuluartiklid[Tšeki summa],Kuluartiklid[PR kood],Kuuväljaminekute_kokkuvõte[[#This Row],[PR kood]],Kuluartiklid[Arve kuupäev],\">=\"&E$3,Kuluartiklid[Arve kuupäev],\"<=\"&E$4)+SUMIFS(Muu[Tšeki summa],Muu[PR kood],Kuuväljaminekute_kokkuvõte[[#This Row],[PR kood]],Muu[Tšeki taotluse alustamise kuupäev],\">=\"&DATEVALUE(\" 1 \"&Kuuväljaminekute_kokkuvõte[[#Headers],[Veebruar]]&_xlfn.SINGLE(_AASTA)),Muu[Tšeki taotluse alustamise kuupäev],\"<=\"&E$4)","v":{"v":0,"d":"0.00 €"}},{"$f":"SUMIFS(Kuluartiklid[Tšeki summa],Kuluartiklid[PR kood],Kuuväljaminekute_kokkuvõte[[#This Row],[PR kood]],Kuluartiklid[Arve kuupäev],\">=\"&F$3,Kuluartiklid[Arve kuupäev],\"<=\"&F$4)+SUMIFS(Muu[Tšeki summa],Muu[PR kood],Kuuväljaminekute_kokkuvõte[[#This Row],[PR kood]],Muu[Tšeki taotluse alustamise kuupäev],\">=\"&DATEVALUE(\" 1 \"&Kuuväljaminekute_kokkuvõte[[#Headers],[Märts]]&_xlfn.SINGLE(_AASTA)),Muu[Tšeki taotluse alustamise kuupäev],\"<=\"&F$4)","v":{"v":0,"d":"0.00 €"}},{"$f":"SUMIFS(Kuluartiklid[Tšeki summa],Kuluartiklid[PR kood],Kuuväljaminekute_kokkuvõte[[#This Row],[PR kood]],Kuluartiklid[Arve kuupäev],\">=\"&G$3,Kuluartiklid[Arve kuupäev],\"<=\"&G$4)+SUMIFS(Muu[Tšeki summa],Muu[PR kood],Kuuväljaminekute_kokkuvõte[[#This Row],[PR kood]],Muu[Tšeki taotluse alustamise kuupäev],\">=\"&DATEVALUE(\" 1 \"&Kuuväljaminekute_kokkuvõte[[#Headers],[Aprill]]&_xlfn.SINGLE(_AASTA)),Muu[Tšeki taotluse alustamise kuupäev],\"<=\"&G$4)","v":{"v":0,"d":"0.00 €"}},{"$f":"SUMIFS(Kuluartiklid[Tšeki summa],Kuluartiklid[PR kood],Kuuväljaminekute_kokkuvõte[[#This Row],[PR kood]],Kuluartiklid[Arve kuupäev],\">=\"&H$3,Kuluartiklid[Arve kuupäev],\"<=\"&H$4)+SUMIFS(Muu[Tšeki summa],Muu[PR kood],Kuuväljaminekute_kokkuvõte[[#This Row],[PR kood]],Muu[Tšeki taotluse alustamise kuupäev],\">=\"&DATEVALUE(\" 1 \"&Kuuväljaminekute_kokkuvõte[[#Headers],[Mai]]&_xlfn.SINGLE(_AASTA)),Muu[Tšeki taotluse alustamise kuupäev],\"<=\"&H$4)","v":{"v":0,"d":"0.00 €"}},{"$f":"SUMIFS(Kuluartiklid[Tšeki summa],Kuluartiklid[PR kood],Kuuväljaminekute_kokkuvõte[[#This Row],[PR kood]],Kuluartiklid[Arve kuupäev],\">=\"&I$3,Kuluartiklid[Arve kuupäev],\"<=\"&I$4)+SUMIFS(Muu[Tšeki summa],Muu[PR kood],Kuuväljaminekute_kokkuvõte[[#This Row],[PR kood]],Muu[Tšeki taotluse alustamise kuupäev],\">=\"&DATEVALUE(\" 1 \"&Kuuväljaminekute_kokkuvõte[[#Headers],[Juuni]]&_xlfn.SINGLE(_AASTA)),Muu[Tšeki taotluse alustamise kuupäev],\"<=\"&I$4)","v":{"v":0,"d":"0.00 €"}},{"$f":"SUMIFS(Kuluartiklid[Tšeki summa],Kuluartiklid[PR kood],Kuuväljaminekute_kokkuvõte[[#This Row],[PR kood]],Kuluartiklid[Arve kuupäev],\">=\"&J$3,Kuluartiklid[Arve kuupäev],\"<=\"&J$4)+SUMIFS(Muu[Tšeki summa],Muu[PR kood],Kuuväljaminekute_kokkuvõte[[#This Row],[PR kood]],Muu[Tšeki taotluse alustamise kuupäev],\">=\"&DATEVALUE(\" 1 \"&Kuuväljaminekute_kokkuvõte[[#Headers],[Juuli]]&_xlfn.SINGLE(_AASTA)),Muu[Tšeki taotluse alustamise kuupäev],\"<=\"&J$4)","v":{"v":0,"d":"0.00 €"}},{"$f":"SUMIFS(Kuluartiklid[Tšeki summa],Kuluartiklid[PR kood],Kuuväljaminekute_kokkuvõte[[#This Row],[PR kood]],Kuluartiklid[Arve kuupäev],\">=\"&K$3,Kuluartiklid[Arve kuupäev],\"<=\"&K$4)+SUMIFS(Muu[Tšeki summa],Muu[PR kood],Kuuväljaminekute_kokkuvõte[[#This Row],[PR kood]],Muu[Tšeki taotluse alustamise kuupäev],\">=\"&DATEVALUE(\" 1 \"&Kuuväljaminekute_kokkuvõte[[#Headers],[August]]&_xlfn.SINGLE(_AASTA)),Muu[Tšeki taotluse alustamise kuupäev],\"<=\"&K$4)","v":{"v":0,"d":"0.00 €"}},{"$f":"SUMIFS(Kuluartiklid[Tšeki summa],Kuluartiklid[PR kood],Kuuväljaminekute_kokkuvõte[[#This Row],[PR kood]],Kuluartiklid[Arve kuupäev],\">=\"&L$3,Kuluartiklid[Arve kuupäev],\"<=\"&L$4)+SUMIFS(Muu[Tšeki summa],Muu[PR kood],Kuuväljaminekute_kokkuvõte[[#This Row],[PR kood]],Muu[Tšeki taotluse alustamise kuupäev],\">=\"&DATEVALUE(\" 1 \"&Kuuväljaminekute_kokkuvõte[[#Headers],[September]]&_xlfn.SINGLE(_AASTA)),Muu[Tšeki taotluse alustamise kuupäev],\"<=\"&L$4)","v":{"v":0,"d":"0.00 €"}},{"$f":"SUMIFS(Kuluartiklid[Tšeki summa],Kuluartiklid[PR kood],Kuuväljaminekute_kokkuvõte[[#This Row],[PR kood]],Kuluartiklid[Arve kuupäev],\">=\"&M$3,Kuluartiklid[Arve kuupäev],\"<=\"&M$4)+SUMIFS(Muu[Tšeki summa],Muu[PR kood],Kuuväljaminekute_kokkuvõte[[#This Row],[PR kood]],Muu[Tšeki taotluse alustamise kuupäev],\">=\"&DATEVALUE(\" 1 \"&Kuuväljaminekute_kokkuvõte[[#Headers],[Oktoober]]&_xlfn.SINGLE(_AASTA)),Muu[Tšeki taotluse alustamise kuupäev],\"<=\"&M$4)","v":{"v":0,"d":"0.00 €"}},{"$f":"SUMIFS(Kuluartiklid[Tšeki summa],Kuluartiklid[PR kood],Kuuväljaminekute_kokkuvõte[[#This Row],[PR kood]],Kuluartiklid[Arve kuupäev],\">=\"&N$3,Kuluartiklid[Arve kuupäev],\"<=\"&N$4)+SUMIFS(Muu[Tšeki summa],Muu[PR kood],Kuuväljaminekute_kokkuvõte[[#This Row],[PR kood]],Muu[Tšeki taotluse alustamise kuupäev],\">=\"&DATEVALUE(\" 1 \"&Kuuväljaminekute_kokkuvõte[[#Headers],[November]]&_xlfn.SINGLE(_AASTA)),Muu[Tšeki taotluse alustamise kuupäev],\"<=\"&N$4)","v":{"v":0,"d":"0.00 €"}},{"$f":"SUMIFS(Kuluartiklid[Tšeki summa],Kuluartiklid[PR kood],Kuuväljaminekute_kokkuvõte[[#This Row],[PR kood]],Kuluartiklid[Arve kuupäev],\">=\"&O$3,Kuluartiklid[Arve kuupäev],\"<=\"&O$4)+SUMIFS(Muu[Tšeki summa],Muu[PR kood],Kuuväljaminekute_kokkuvõte[[#This Row],[PR kood]],Muu[Tšeki taotluse alustamise kuupäev],\">=\"&DATEVALUE(\" 1 \"&Kuuväljaminekute_kokkuvõte[[#Headers],[Detsember]]&_xlfn.SINGLE(_AASTA)),Muu[Tšeki taotluse alustamise kuupäev],\"<=\"&O$4)","v":{"v":0,"d":"0.00 €"}},{"$f":"SUM(Kuuväljaminekute_kokkuvõte[[#This Row],[Jaanuar]:[Detsember]])","v":{"v":0,"d":"0.00 €"}}]
[null,3000,"Printerid",{"$f":"SUMIFS(Kuluartiklid[Tšeki summa],Kuluartiklid[PR kood],Kuuväljaminekute_kokkuvõte[[#This Row],[PR kood]],Kuluartiklid[Arve kuupäev],\">=\"&D$3,Kuluartiklid[Arve kuupäev],\"<=\"&D$4)+SUMIFS(Muu[Tšeki summa],Muu[PR kood],Kuuväljaminekute_kokkuvõte[[#This Row],[PR kood]],Muu[Tšeki taotluse alustamise kuupäev],\">=\"&DATEVALUE(\" 1 \"&Kuuväljaminekute_kokkuvõte[[#Headers],[Jaanuar]]&_xlfn.SINGLE(_AASTA)),Muu[Tšeki taotluse alustamise kuupäev],\"<=\"&D$4)","v":{"v":0,"d":"0.00 €"}},{"$f":"SUMIFS(Kuluartiklid[Tšeki summa],Kuluartiklid[PR kood],Kuuväljaminekute_kokkuvõte[[#This Row],[PR kood]],Kuluartiklid[Arve kuupäev],\">=\"&E$3,Kuluartiklid[Arve kuupäev],\"<=\"&E$4)+SUMIFS(Muu[Tšeki summa],Muu[PR kood],Kuuväljaminekute_kokkuvõte[[#This Row],[PR kood]],Muu[Tšeki taotluse alustamise kuupäev],\">=\"&DATEVALUE(\" 1 \"&Kuuväljaminekute_kokkuvõte[[#Headers],[Veebruar]]&_xlfn.SINGLE(_AASTA)),Muu[Tšeki taotluse alustamise kuupäev],\"<=\"&E$4)","v":{"v":0,"d":"0.00 €"}},{"$f":"SUMIFS(Kuluartiklid[Tšeki summa],Kuluartiklid[PR kood],Kuuväljaminekute_kokkuvõte[[#This Row],[PR kood]],Kuluartiklid[Arve kuupäev],\">=\"&F$3,Kuluartiklid[Arve kuupäev],\"<=\"&F$4)+SUMIFS(Muu[Tšeki summa],Muu[PR kood],Kuuväljaminekute_kokkuvõte[[#This Row],[PR kood]],Muu[Tšeki taotluse alustamise kuupäev],\">=\"&DATEVALUE(\" 1 \"&Kuuväljaminekute_kokkuvõte[[#Headers],[Märts]]&_xlfn.SINGLE(_AASTA)),Muu[Tšeki taotluse alustamise kuupäev],\"<=\"&F$4)","v":{"v":0,"d":"0.00 €"}},{"$f":"SUMIFS(Kuluartiklid[Tšeki summa],Kuluartiklid[PR kood],Kuuväljaminekute_kokkuvõte[[#This Row],[PR kood]],Kuluartiklid[Arve kuupäev],\">=\"&G$3,Kuluartiklid[Arve kuupäev],\"<=\"&G$4)+SUMIFS(Muu[Tšeki summa],Muu[PR kood],Kuuväljaminekute_kokkuvõte[[#This Row],[PR kood]],Muu[Tšeki taotluse alustamise kuupäev],\">=\"&DATEVALUE(\" 1 \"&Kuuväljaminekute_kokkuvõte[[#Headers],[Aprill]]&_xlfn.SINGLE(_AASTA)),Muu[Tšeki taotluse alustamise kuupäev],\"<=\"&G$4)","v":{"v":0,"d":"0.00 €"}},{"$f":"SUMIFS(Kuluartiklid[Tšeki summa],Kuluartiklid[PR kood],Kuuväljaminekute_kokkuvõte[[#This Row],[PR kood]],Kuluartiklid[Arve kuupäev],\">=\"&H$3,Kuluartiklid[Arve kuupäev],\"<=\"&H$4)+SUMIFS(Muu[Tšeki summa],Muu[PR kood],Kuuväljaminekute_kokkuvõte[[#This Row],[PR kood]],Muu[Tšeki taotluse alustamise kuupäev],\">=\"&DATEVALUE(\" 1 \"&Kuuväljaminekute_kokkuvõte[[#Headers],[Mai]]&_xlfn.SINGLE(_AASTA)),Muu[Tšeki taotluse alustamise kuupäev],\"<=\"&H$4)","v":{"v":0,"d":"0.00 €"}},{"$f":"SUMIFS(Kuluartiklid[Tšeki summa],Kuluartiklid[PR kood],Kuuväljaminekute_kokkuvõte[[#This Row],[PR kood]],Kuluartiklid[Arve kuupäev],\">=\"&I$3,Kuluartiklid[Arve kuupäev],\"<=\"&I$4)+SUMIFS(Muu[Tšeki summa],Muu[PR kood],Kuuväljaminekute_kokkuvõte[[#This Row],[PR kood]],Muu[Tšeki taotluse alustamise kuupäev],\">=\"&DATEVALUE(\" 1 \"&Kuuväljaminekute_kokkuvõte[[#Headers],[Juuni]]&_xlfn.SINGLE(_AASTA)),Muu[Tšeki taotluse alustamise kuupäev],\"<=\"&I$4)","v":{"v":0,"d":"0.00 €"}},{"$f":"SUMIFS(Kuluartiklid[Tšeki summa],Kuluartiklid[PR kood],Kuuväljaminekute_kokkuvõte[[#This Row],[PR kood]],Kuluartiklid[Arve kuupäev],\">=\"&J$3,Kuluartiklid[Arve kuupäev],\"<=\"&J$4)+SUMIFS(Muu[Tšeki summa],Muu[PR kood],Kuuväljaminekute_kokkuvõte[[#This Row],[PR kood]],Muu[Tšeki taotluse alustamise kuupäev],\">=\"&DATEVALUE(\" 1 \"&Kuuväljaminekute_kokkuvõte[[#Headers],[Juuli]]&_xlfn.SINGLE(_AASTA)),Muu[Tšeki taotluse alustamise kuupäev],\"<=\"&J$4)","v":{"v":0,"d":"0.00 €"}},{"$f":"SUMIFS(Kuluartiklid[Tšeki summa],Kuluartiklid[PR kood],Kuuväljaminekute_kokkuvõte[[#This Row],[PR kood]],Kuluartiklid[Arve kuupäev],\">=\"&K$3,Kuluartiklid[Arve kuupäev],\"<=\"&K$4)+SUMIFS(Muu[Tšeki summa],Muu[PR kood],Kuuväljaminekute_kokkuvõte[[#This Row],[PR kood]],Muu[Tšeki taotluse alustamise kuupäev],\">=\"&DATEVALUE(\" 1 \"&Kuuväljaminekute_kokkuvõte[[#Headers],[August]]&_xlfn.SINGLE(_AASTA)),Muu[Tšeki taotluse alustamise kuupäev],\"<=\"&K$4)","v":{"v":0,"d":"0.00 €"}},{"$f":"SUMIFS(Kuluartiklid[Tšeki summa],Kuluartiklid[PR kood],Kuuväljaminekute_kokkuvõte[[#This Row],[PR kood]],Kuluartiklid[Arve kuupäev],\">=\"&L$3,Kuluartiklid[Arve kuupäev],\"<=\"&L$4)+SUMIFS(Muu[Tšeki summa],Muu[PR kood],Kuuväljaminekute_kokkuvõte[[#This Row],[PR kood]],Muu[Tšeki taotluse alustamise kuupäev],\">=\"&DATEVALUE(\" 1 \"&Kuuväljaminekute_kokkuvõte[[#Headers],[September]]&_xlfn.SINGLE(_AASTA)),Muu[Tšeki taotluse alustamise kuupäev],\"<=\"&L$4)","v":{"v":0,"d":"0.00 €"}},{"$f":"SUMIFS(Kuluartiklid[Tšeki summa],Kuluartiklid[PR kood],Kuuväljaminekute_kokkuvõte[[#This Row],[PR kood]],Kuluartiklid[Arve kuupäev],\">=\"&M$3,Kuluartiklid[Arve kuupäev],\"<=\"&M$4)+SUMIFS(Muu[Tšeki summa],Muu[PR kood],Kuuväljaminekute_kokkuvõte[[#This Row],[PR kood]],Muu[Tšeki taotluse alustamise kuupäev],\">=\"&DATEVALUE(\" 1 \"&Kuuväljaminekute_kokkuvõte[[#Headers],[Oktoober]]&_xlfn.SINGLE(_AASTA)),Muu[Tšeki taotluse alustamise kuupäev],\"<=\"&M$4)","v":{"v":0,"d":"0.00 €"}},{"$f":"SUMIFS(Kuluartiklid[Tšeki summa],Kuluartiklid[PR kood],Kuuväljaminekute_kokkuvõte[[#This Row],[PR kood]],Kuluartiklid[Arve kuupäev],\">=\"&N$3,Kuluartiklid[Arve kuupäev],\"<=\"&N$4)+SUMIFS(Muu[Tšeki summa],Muu[PR kood],Kuuväljaminekute_kokkuvõte[[#This Row],[PR kood]],Muu[Tšeki taotluse alustamise kuupäev],\">=\"&DATEVALUE(\" 1 \"&Kuuväljaminekute_kokkuvõte[[#Headers],[November]]&_xlfn.SINGLE(_AASTA)),Muu[Tšeki taotluse alustamise kuupäev],\"<=\"&N$4)","v":{"v":0,"d":"0.00 €"}},{"$f":"SUMIFS(Kuluartiklid[Tšeki summa],Kuluartiklid[PR kood],Kuuväljaminekute_kokkuvõte[[#This Row],[PR kood]],Kuluartiklid[Arve kuupäev],\">=\"&O$3,Kuluartiklid[Arve kuupäev],\"<=\"&O$4)+SUMIFS(Muu[Tšeki summa],Muu[PR kood],Kuuväljaminekute_kokkuvõte[[#This Row],[PR kood]],Muu[Tšeki taotluse alustamise kuupäev],\">=\"&DATEVALUE(\" 1 \"&Kuuväljaminekute_kokkuvõte[[#Headers],[Detsember]]&_xlfn.SINGLE(_AASTA)),Muu[Tšeki taotluse alustamise kuupäev],\"<=\"&O$4)","v":{"v":0,"d":"0.00 €"}},{"$f":"SUM(Kuuväljaminekute_kokkuvõte[[#This Row],[Jaanuar]:[Detsember]])","v":{"v":0,"d":"0.00 €"}}]
[null,4000,"Serveri kulud",{"$f":"SUMIFS(Kuluartiklid[Tšeki summa],Kuluartiklid[PR kood],Kuuväljaminekute_kokkuvõte[[#This Row],[PR kood]],Kuluartiklid[Arve kuupäev],\">=\"&D$3,Kuluartiklid[Arve kuupäev],\"<=\"&D$4)+SUMIFS(Muu[Tšeki summa],Muu[PR kood],Kuuväljaminekute_kokkuvõte[[#This Row],[PR kood]],Muu[Tšeki taotluse alustamise kuupäev],\">=\"&DATEVALUE(\" 1 \"&Kuuväljaminekute_kokkuvõte[[#Headers],[Jaanuar]]&_xlfn.SINGLE(_AASTA)),Muu[Tšeki taotluse alustamise kuupäev],\"<=\"&D$4)","v":{"v":0,"d":"0.00 €"}},{"$f":"SUMIFS(Kuluartiklid[Tšeki summa],Kuluartiklid[PR kood],Kuuväljaminekute_kokkuvõte[[#This Row],[PR kood]],Kuluartiklid[Arve kuupäev],\">=\"&E$3,Kuluartiklid[Arve kuupäev],\"<=\"&E$4)+SUMIFS(Muu[Tšeki summa],Muu[PR kood],Kuuväljaminekute_kokkuvõte[[#This Row],[PR kood]],Muu[Tšeki taotluse alustamise kuupäev],\">=\"&DATEVALUE(\" 1 \"&Kuuväljaminekute_kokkuvõte[[#Headers],[Veebruar]]&_xlfn.SINGLE(_AASTA)),Muu[Tšeki taotluse alustamise kuupäev],\"<=\"&E$4)","v":{"v":0,"d":"0.00 €"}},{"$f":"SUMIFS(Kuluartiklid[Tšeki summa],Kuluartiklid[PR kood],Kuuväljaminekute_kokkuvõte[[#This Row],[PR kood]],Kuluartiklid[Arve kuupäev],\">=\"&F$3,Kuluartiklid[Arve kuupäev],\"<=\"&F$4)+SUMIFS(Muu[Tšeki summa],Muu[PR kood],Kuuväljaminekute_kokkuvõte[[#This Row],[PR kood]],Muu[Tšeki taotluse alustamise kuupäev],\">=\"&DATEVALUE(\" 1 \"&Kuuväljaminekute_kokkuvõte[[#Headers],[Märts]]&_xlfn.SINGLE(_AASTA)),Muu[Tšeki taotluse alustamise kuupäev],\"<=\"&F$4)","v":{"v":0,"d":"0.00 €"}},{"$f":"SUMIFS(Kuluartiklid[Tšeki summa],Kuluartiklid[PR kood],Kuuväljaminekute_kokkuvõte[[#This Row],[PR kood]],Kuluartiklid[Arve kuupäev],\">=\"&G$3,Kuluartiklid[Arve kuupäev],\"<=\"&G$4)+SUMIFS(Muu[Tšeki summa],Muu[PR kood],Kuuväljaminekute_kokkuvõte[[#This Row],[PR kood]],Muu[Tšeki taotluse alustamise kuupäev],\">=\"&DATEVALUE(\" 1 \"&Kuuväljaminekute_kokkuvõte[[#Headers],[Aprill]]&_xlfn.SINGLE(_AASTA)),Muu[Tšeki taotluse alustamise kuupäev],\"<=\"&G$4)","v":{"v":0,"d":"0.00 €"}},{"$f":"SUMIFS(Kuluartiklid[Tšeki summa],Kuluartiklid[PR kood],Kuuväljaminekute_kokkuvõte[[#This Row],[PR kood]],Kuluartiklid[Arve kuupäev],\">=\"&H$3,Kuluartiklid[Arve kuupäev],\"<=\"&H$4)+SUMIFS(Muu[Tšeki summa],Muu[PR kood],Kuuväljaminekute_kokkuvõte[[#This Row],[PR kood]],Muu[Tšeki taotluse alustamise kuupäev],\">=\"&DATEVALUE(\" 1 \"&Kuuväljaminekute_kokkuvõte[[#Headers],[Mai]]&_xlfn.SINGLE(_AASTA)),Muu[Tšeki taotluse alustamise kuupäev],\"<=\"&H$4)","v":{"v":0,"d":"0.00 €"}},{"$f":"SUMIFS(Kuluartiklid[Tšeki summa],Kuluartiklid[PR kood],Kuuväljaminekute_kokkuvõte[[#This Row],[PR kood]],Kuluartiklid[Arve kuupäev],\">=\"&I$3,Kuluartiklid[Arve kuupäev],\"<=\"&I$4)+SUMIFS(Muu[Tšeki summa],Muu[PR kood],Kuuväljaminekute_kokkuvõte[[#This Row],[PR kood]],Muu[Tšeki taotluse alustamise kuupäev],\">=\"&DATEVALUE(\" 1 \"&Kuuväljaminekute_kokkuvõte[[#Headers],[Juuni]]&_xlfn.SINGLE(_AASTA)),Muu[Tšeki taotluse alustamise kuupäev],\"<=\"&I$4)","v":{"v":0,"d":"0.00 €"}},{"$f":"SUMIFS(Kuluartiklid[Tšeki summa],Kuluartiklid[PR kood],Kuuväljaminekute_kokkuvõte[[#This Row],[PR kood]],Kuluartiklid[Arve kuupäev],\">=\"&J$3,Kuluartiklid[Arve kuupäev],\"<=\"&J$4)+SUMIFS(Muu[Tšeki summa],Muu[PR kood],Kuuväljaminekute_kokkuvõte[[#This Row],[PR kood]],Muu[Tšeki taotluse alustamise kuupäev],\">=\"&DATEVALUE(\" 1 \"&Kuuväljaminekute_kokkuvõte[[#Headers],[Juuli]]&_xlfn.SINGLE(_AASTA)),Muu[Tšeki taotluse alustamise kuupäev],\"<=\"&J$4)","v":{"v":0,"d":"0.00 €"}},{"$f":"SUMIFS(Kuluartiklid[Tšeki summa],Kuluartiklid[PR kood],Kuuväljaminekute_kokkuvõte[[#This Row],[PR kood]],Kuluartiklid[Arve kuupäev],\">=\"&K$3,Kuluartiklid[Arve kuupäev],\"<=\"&K$4)+SUMIFS(Muu[Tšeki summa],Muu[PR kood],Kuuväljaminekute_kokkuvõte[[#This Row],[PR kood]],Muu[Tšeki taotluse alustamise kuupäev],\">=\"&DATEVALUE(\" 1 \"&Kuuväljaminekute_kokkuvõte[[#Headers],[August]]&_xlfn.SINGLE(_AASTA)),Muu[Tšeki taotluse alustamise kuupäev],\"<=\"&K$4)","v":{"v":0,"d":"0.00 €"}},{"$f":"SUMIFS(Kuluartiklid[Tšeki summa],Kuluartiklid[PR kood],Kuuväljaminekute_kokkuvõte[[#This Row],[PR kood]],Kuluartiklid[Arve kuupäev],\">=\"&L$3,Kuluartiklid[Arve kuupäev],\"<=\"&L$4)+SUMIFS(Muu[Tšeki summa],Muu[PR kood],Kuuväljaminekute_kokkuvõte[[#This Row],[PR kood]],Muu[Tšeki taotluse alustamise kuupäev],\">=\"&DATEVALUE(\" 1 \"&Kuuväljaminekute_kokkuvõte[[#Headers],[September]]&_xlfn.SINGLE(_AASTA)),Muu[Tšeki taotluse alustamise kuupäev],\"<=\"&L$4)","v":{"v":0,"d":"0.00 €"}},{"$f":"SUMIFS(Kuluartiklid[Tšeki summa],Kuluartiklid[PR kood],Kuuväljaminekute_kokkuvõte[[#This Row],[PR kood]],Kuluartiklid[Arve kuupäev],\">=\"&M$3,Kuluartiklid[Arve kuupäev],\"<=\"&M$4)+SUMIFS(Muu[Tšeki summa],Muu[PR kood],Kuuväljaminekute_kokkuvõte[[#This Row],[PR kood]],Muu[Tšeki taotluse alustamise kuupäev],\">=\"&DATEVALUE(\" 1 \"&Kuuväljaminekute_kokkuvõte[[#Headers],[Oktoober]]&_xlfn.SINGLE(_AASTA)),Muu[Tšeki taotluse alustamise kuupäev],\"<=\"&M$4)","v":{"v":0,"d":"0.00 €"}},{"$f":"SUMIFS(Kuluartiklid[Tšeki summa],Kuluartiklid[PR kood],Kuuväljaminekute_kokkuvõte[[#This Row],[PR kood]],Kuluartiklid[Arve kuupäev],\">=\"&N$3,Kuluartiklid[Arve kuupäev],\"<=\"&N$4)+SUMIFS(Muu[Tšeki summa],Muu[PR kood],Kuuväljaminekute_kokkuvõte[[#This Row],[PR kood]],Muu[Tšeki taotluse alustamise kuupäev],\">=\"&DATEVALUE(\" 1 \"&Kuuväljaminekute_kokkuvõte[[#Headers],[November]]&_xlfn.SINGLE(_AASTA)),Muu[Tšeki taotluse alustamise kuupäev],\"<=\"&N$4)","v":{"v":0,"d":"0.00 €"}},{"$f":"SUMIFS(Kuluartiklid[Tšeki summa],Kuluartiklid[PR kood],Kuuväljaminekute_kokkuvõte[[#This Row],[PR kood]],Kuluartiklid[Arve kuupäev],\">=\"&O$3,Kuluartiklid[Arve kuupäev],\"<=\"&O$4)+SUMIFS(Muu[Tšeki summa],Muu[PR kood],Kuuväljaminekute_kokkuvõte[[#This Row],[PR kood]],Muu[Tšeki taotluse alustamise kuupäev],\">=\"&DATEVALUE(\" 1 \"&Kuuväljaminekute_kokkuvõte[[#Headers],[Detsember]]&_xlfn.SINGLE(_AASTA)),Muu[Tšeki taotluse alustamise kuupäev],\"<=\"&O$4)","v":{"v":0,"d":"0.00 €"}},{"$f":"SUM(Kuuväljaminekute_kokkuvõte[[#This Row],[Jaanuar]:[Detsember]])","v":{"v":0,"d":"0.00 €"}}]
[null,5000,"Tarbeesemed",{"$f":"SUMIFS(Kuluartiklid[Tšeki summa],Kuluartiklid[PR kood],Kuuväljaminekute_kokkuvõte[[#This Row],[PR kood]],Kuluartiklid[Arve kuupäev],\">=\"&D$3,Kuluartiklid[Arve kuupäev],\"<=\"&D$4)+SUMIFS(Muu[Tšeki summa],Muu[PR kood],Kuuväljaminekute_kokkuvõte[[#This Row],[PR kood]],Muu[Tšeki taotluse alustamise kuupäev],\">=\"&DATEVALUE(\" 1 \"&Kuuväljaminekute_kokkuvõte[[#Headers],[Jaanuar]]&_xlfn.SINGLE(_AASTA)),Muu[Tšeki taotluse alustamise kuupäev],\"<=\"&D$4)","v":{"v":0,"d":"0.00 €"}},{"$f":"SUMIFS(Kuluartiklid[Tšeki summa],Kuluartiklid[PR kood],Kuuväljaminekute_kokkuvõte[[#This Row],[PR kood]],Kuluartiklid[Arve kuupäev],\">=\"&E$3,Kuluartiklid[Arve kuupäev],\"<=\"&E$4)+SUMIFS(Muu[Tšeki summa],Muu[PR kood],Kuuväljaminekute_kokkuvõte[[#This Row],[PR kood]],Muu[Tšeki taotluse alustamise kuupäev],\">=\"&DATEVALUE(\" 1 \"&Kuuväljaminekute_kokkuvõte[[#Headers],[Veebruar]]&_xlfn.SINGLE(_AASTA)),Muu[Tšeki taotluse alustamise kuupäev],\"<=\"&E$4)","v":{"v":0,"d":"0.00 €"}},{"$f":"SUMIFS(Kuluartiklid[Tšeki summa],Kuluartiklid[PR kood],Kuuväljaminekute_kokkuvõte[[#This Row],[PR kood]],Kuluartiklid[Arve kuupäev],\">=\"&F$3,Kuluartiklid[Arve kuupäev],\"<=\"&F$4)+SUMIFS(Muu[Tšeki summa],Muu[PR kood],Kuuväljaminekute_kokkuvõte[[#This Row],[PR kood]],Muu[Tšeki taotluse alustamise kuupäev],\">=\"&DATEVALUE(\" 1 \"&Kuuväljaminekute_kokkuvõte[[#Headers],[Märts]]&_xlfn.SINGLE(_AASTA)),Muu[Tšeki taotluse alustamise kuupäev],\"<=\"&F$4)","v":{"v":0,"d":"0.00 €"}},{"$f":"SUMIFS(Kuluartiklid[Tšeki summa],Kuluartiklid[PR kood],Kuuväljaminekute_kokkuvõte[[#This Row],[PR kood]],Kuluartiklid[Arve kuupäev],\">=\"&G$3,Kuluartiklid[Arve kuupäev],\"<=\"&G$4)+SUMIFS(Muu[Tšeki summa],Muu[PR kood],Kuuväljaminekute_kokkuvõte[[#This Row],[PR kood]],Muu[Tšeki taotluse alustamise kuupäev],\">=\"&DATEVALUE(\" 1 \"&Kuuväljaminekute_kokkuvõte[[#Headers],[Aprill]]&_xlfn.SINGLE(_AASTA)),Muu[Tšeki taotluse alustamise kuupäev],\"<=\"&G$4)","v":{"v":0,"d":"0.00 €"}},{"$f":"SUMIFS(Kuluartiklid[Tšeki summa],Kuluartiklid[PR kood],Kuuväljaminekute_kokkuvõte[[#This Row],[PR kood]],Kuluartiklid[Arve kuupäev],\">=\"&H$3,Kuluartiklid[Arve kuupäev],\"<=\"&H$4)+SUMIFS(Muu[Tšeki summa],Muu[PR kood],Kuuväljaminekute_kokkuvõte[[#This Row],[PR kood]],Muu[Tšeki taotluse alustamise kuupäev],\">=\"&DATEVALUE(\" 1 \"&Kuuväljaminekute_kokkuvõte[[#Headers],[Mai]]&_xlfn.SINGLE(_AASTA)),Muu[Tšeki taotluse alustamise kuupäev],\"<=\"&H$4)","v":{"v":0,"d":"0.00 €"}},{"$f":"SUMIFS(Kuluartiklid[Tšeki summa],Kuluartiklid[PR kood],Kuuväljaminekute_kokkuvõte[[#This Row],[PR kood]],Kuluartiklid[Arve kuupäev],\">=\"&I$3,Kuluartiklid[Arve kuupäev],\"<=\"&I$4)+SUMIFS(Muu[Tšeki summa],Muu[PR kood],Kuuväljaminekute_kokkuvõte[[#This Row],[PR kood]],Muu[Tšeki taotluse alustamise kuupäev],\">=\"&DATEVALUE(\" 1 \"&Kuuväljaminekute_kokkuvõte[[#Headers],[Juuni]]&_xlfn.SINGLE(_AASTA)),Muu[Tšeki taotluse alustamise kuupäev],\"<=\"&I$4)","v":{"v":0,"d":"0.00 €"}},{"$f":"SUMIFS(Kuluartiklid[Tšeki summa],Kuluartiklid[PR kood],Kuuväljaminekute_kokkuvõte[[#This Row],[PR kood]],Kuluartiklid[Arve kuupäev],\">=\"&J$3,Kuluartiklid[Arve kuupäev],\"<=\"&J$4)+SUMIFS(Muu[Tšeki summa],Muu[PR kood],Kuuväljaminekute_kokkuvõte[[#This Row],[PR kood]],Muu[Tšeki taotluse alustamise kuupäev],\">=\"&DATEVALUE(\" 1 \"&Kuuväljaminekute_kokkuvõte[[#Headers],[Juuli]]&_xlfn.SINGLE(_AASTA)),Muu[Tšeki taotluse alustamise kuupäev],\"<=\"&J$4)","v":{"v":0,"d":"0.00 €"}},{"$f":"SUMIFS(Kuluartiklid[Tšeki summa],Kuluartiklid[PR kood],Kuuväljaminekute_kokkuvõte[[#This Row],[PR kood]],Kuluartiklid[Arve kuupäev],\">=\"&K$3,Kuluartiklid[Arve kuupäev],\"<=\"&K$4)+SUMIFS(Muu[Tšeki summa],Muu[PR kood],Kuuväljaminekute_kokkuvõte[[#This Row],[PR kood]],Muu[Tšeki taotluse alustamise kuupäev],\">=\"&DATEVALUE(\" 1 \"&Kuuväljaminekute_kokkuvõte[[#Headers],[August]]&_xlfn.SINGLE(_AASTA)),Muu[Tšeki taotluse alustamise kuupäev],\"<=\"&K$4)","v":{"v":0,"d":"0.00 €"}},{"$f":"SUMIFS(Kuluartiklid[Tšeki summa],Kuluartiklid[PR kood],Kuuväljaminekute_kokkuvõte[[#This Row],[PR kood]],Kuluartiklid[Arve kuupäev],\">=\"&L$3,Kuluartiklid[Arve kuupäev],\"<=\"&L$4)+SUMIFS(Muu[Tšeki summa],Muu[PR kood],Kuuväljaminekute_kokkuvõte[[#This Row],[PR kood]],Muu[Tšeki taotluse alustamise kuupäev],\">=\"&DATEVALUE(\" 1 \"&Kuuväljaminekute_kokkuvõte[[#Headers],[September]]&_xlfn.SINGLE(_AASTA)),Muu[Tšeki taotluse alustamise kuupäev],\"<=\"&L$4)","v":{"v":0,"d":"0.00 €"}},{"$f":"SUMIFS(Kuluartiklid[Tšeki summa],Kuluartiklid[PR kood],Kuuväljaminekute_kokkuvõte[[#This Row],[PR kood]],Kuluartiklid[Arve kuupäev],\">=\"&M$3,Kuluartiklid[Arve kuupäev],\"<=\"&M$4)+SUMIFS(Muu[Tšeki summa],Muu[PR kood],Kuuväljaminekute_kokkuvõte[[#This Row],[PR kood]],Muu[Tšeki taotluse alustamise kuupäev],\">=\"&DATEVALUE(\" 1 \"&Kuuväljaminekute_kokkuvõte[[#Headers],[Oktoober]]&_xlfn.SINGLE(_AASTA)),Muu[Tšeki taotluse alustamise kuupäev],\"<=\"&M$4)","v":{"v":0,"d":"0.00 €"}},{"$f":"SUMIFS(Kuluartiklid[Tšeki summa],Kuluartiklid[PR kood],Kuuväljaminekute_kokkuvõte[[#This Row],[PR kood]],Kuluartiklid[Arve kuupäev],\">=\"&N$3,Kuluartiklid[Arve kuupäev],\"<=\"&N$4)+SUMIFS(Muu[Tšeki summa],Muu[PR kood],Kuuväljaminekute_kokkuvõte[[#This Row],[PR kood]],Muu[Tšeki taotluse alustamise kuupäev],\">=\"&DATEVALUE(\" 1 \"&Kuuväljaminekute_kokkuvõte[[#Headers],[November]]&_xlfn.SINGLE(_AASTA)),Muu[Tšeki taotluse alustamise kuupäev],\"<=\"&N$4)","v":{"v":0,"d":"0.00 €"}},{"$f":"SUMIFS(Kuluartiklid[Tšeki summa],Kuluartiklid[PR kood],Kuuväljaminekute_kokkuvõte[[#This Row],[PR kood]],Kuluartiklid[Arve kuupäev],\">=\"&O$3,Kuluartiklid[Arve kuupäev],\"<=\"&O$4)+SUMIFS(Muu[Tšeki summa],Muu[PR kood],Kuuväljaminekute_kokkuvõte[[#This Row],[PR kood]],Muu[Tšeki taotluse alustamise kuupäev],\">=\"&DATEVALUE(\" 1 \"&Kuuväljaminekute_kokkuvõte[[#Headers],[Detsember]]&_xlfn.SINGLE(_AASTA)),Muu[Tšeki taotluse alustamise kuupäev],\"<=\"&O$4)","v":{"v":0,"d":"0.00 €"}},{"$f":"SUM(Kuuväljaminekute_kokkuvõte[[#This Row],[Jaanuar]:[Detsember]])","v":{"v":0,"d":"0.00 €"}}]
[null,6000,"Kliendi kulud",{"$f":"SUMIFS(Kuluartiklid[Tšeki summa],Kuluartiklid[PR kood],Kuuväljaminekute_kokkuvõte[[#This Row],[PR kood]],Kuluartiklid[Arve kuupäev],\">=\"&D$3,Kuluartiklid[Arve kuupäev],\"<=\"&D$4)+SUMIFS(Muu[Tšeki summa],Muu[PR kood],Kuuväljaminekute_kokkuvõte[[#This Row],[PR kood]],Muu[Tšeki taotluse alustamise kuupäev],\">=\"&DATEVALUE(\" 1 \"&Kuuväljaminekute_kokkuvõte[[#Headers],[Jaanuar]]&_xlfn.SINGLE(_AASTA)),Muu[Tšeki taotluse alustamise kuupäev],\"<=\"&D$4)","v":{"v":0,"d":"0.00 €"}},{"$f":"SUMIFS(Kuluartiklid[Tšeki summa],Kuluartiklid[PR kood],Kuuväljaminekute_kokkuvõte[[#This Row],[PR kood]],Kuluartiklid[Arve kuupäev],\">=\"&E$3,Kuluartiklid[Arve kuupäev],\"<=\"&E$4)+SUMIFS(Muu[Tšeki summa],Muu[PR kood],Kuuväljaminekute_kokkuvõte[[#This Row],[PR kood]],Muu[Tšeki taotluse alustamise kuupäev],\">=\"&DATEVALUE(\" 1 \"&Kuuväljaminekute_kokkuvõte[[#Headers],[Veebruar]]&_xlfn.SINGLE(_AASTA)),Muu[Tšeki taotluse alustamise kuupäev],\"<=\"&E$4)","v":{"v":0,"d":"0.00 €"}},{"$f":"SUMIFS(Kuluartiklid[Tšeki summa],Kuluartiklid[PR kood],Kuuväljaminekute_kokkuvõte[[#This Row],[PR kood]],Kuluartiklid[Arve kuupäev],\">=\"&F$3,Kuluartiklid[Arve kuupäev],\"<=\"&F$4)+SUMIFS(Muu[Tšeki summa],Muu[PR kood],Kuuväljaminekute_kokkuvõte[[#This Row],[PR kood]],Muu[Tšeki taotluse alustamise kuupäev],\">=\"&DATEVALUE(\" 1 \"&Kuuväljaminekute_kokkuvõte[[#Headers],[Märts]]&_xlfn.SINGLE(_AASTA)),Muu[Tšeki taotluse alustamise kuupäev],\"<=\"&F$4)","v":{"v":0,"d":"0.00 €"}},{"$f":"SUMIFS(Kuluartiklid[Tšeki summa],Kuluartiklid[PR kood],Kuuväljaminekute_kokkuvõte[[#This Row],[PR kood]],Kuluartiklid[Arve kuupäev],\">=\"&G$3,Kuluartiklid[Arve kuupäev],\"<=\"&G$4)+SUMIFS(Muu[Tšeki summa],Muu[PR kood],Kuuväljaminekute_kokkuvõte[[#This Row],[PR kood]],Muu[Tšeki taotluse alustamise kuupäev],\">=\"&DATEVALUE(\" 1 \"&Kuuväljaminekute_kokkuvõte[[#Headers],[Aprill]]&_xlfn.SINGLE(_AASTA)),Muu[Tšeki taotluse alustamise kuupäev],\"<=\"&G$4)","v":{"v":0,"d":"0.00 €"}},{"$f":"SUMIFS(Kuluartiklid[Tšeki summa],Kuluartiklid[PR kood],Kuuväljaminekute_kokkuvõte[[#This Row],[PR kood]],Kuluartiklid[Arve kuupäev],\">=\"&H$3,Kuluartiklid[Arve kuupäev],\"<=\"&H$4)+SUMIFS(Muu[Tšeki summa],Muu[PR kood],Kuuväljaminekute_kokkuvõte[[#This Row],[PR kood]],Muu[Tšeki taotluse alustamise kuupäev],\">=\"&DATEVALUE(\" 1 \"&Kuuväljaminekute_kokkuvõte[[#Headers],[Mai]]&_xlfn.SINGLE(_AASTA)),Muu[Tšeki taotluse alustamise kuupäev],\"<=\"&H$4)","v":{"v":0,"d":"0.00 €"}},{"$f":"SUMIFS(Kuluartiklid[Tšeki summa],Kuluartiklid[PR kood],Kuuväljaminekute_kokkuvõte[[#This Row],[PR kood]],Kuluartiklid[Arve kuupäev],\">=\"&I$3,Kuluartiklid[Arve kuupäev],\"<=\"&I$4)+SUMIFS(Muu[Tšeki summa],Muu[PR kood],Kuuväljaminekute_kokkuvõte[[#This Row],[PR kood]],Muu[Tšeki taotluse alustamise kuupäev],\">=\"&DATEVALUE(\" 1 \"&Kuuväljaminekute_kokkuvõte[[#Headers],[Juuni]]&_xlfn.SINGLE(_AASTA)),Muu[Tšeki taotluse alustamise kuupäev],\"<=\"&I$4)","v":{"v":0,"d":"0.00 €"}},{"$f":"SUMIFS(Kuluartiklid[Tšeki summa],Kuluartiklid[PR kood],Kuuväljaminekute_kokkuvõte[[#This Row],[PR kood]],Kuluartiklid[Arve kuupäev],\">=\"&J$3,Kuluartiklid[Arve kuupäev],\"<=\"&J$4)+SUMIFS(Muu[Tšeki summa],Muu[PR kood],Kuuväljaminekute_kokkuvõte[[#This Row],[PR kood]],Muu[Tšeki taotluse alustamise kuupäev],\">=\"&DATEVALUE(\" 1 \"&Kuuväljaminekute_kokkuvõte[[#Headers],[Juuli]]&_xlfn.SINGLE(_AASTA)),Muu[Tšeki taotluse alustamise kuupäev],\"<=\"&J$4)","v":{"v":0,"d":"0.00 €"}},{"$f":"SUMIFS(Kuluartiklid[Tšeki summa],Kuluartiklid[PR kood],Kuuväljaminekute_kokkuvõte[[#This Row],[PR kood]],Kuluartiklid[Arve kuupäev],\">=\"&K$3,Kuluartiklid[Arve kuupäev],\"<=\"&K$4)+SUMIFS(Muu[Tšeki summa],Muu[PR kood],Kuuväljaminekute_kokkuvõte[[#This Row],[PR kood]],Muu[Tšeki taotluse alustamise kuupäev],\">=\"&DATEVALUE(\" 1 \"&Kuuväljaminekute_kokkuvõte[[#Headers],[August]]&_xlfn.SINGLE(_AASTA)),Muu[Tšeki taotluse alustamise kuupäev],\"<=\"&K$4)","v":{"v":0,"d":"0.00 €"}},{"$f":"SUMIFS(Kuluartiklid[Tšeki summa],Kuluartiklid[PR kood],Kuuväljaminekute_kokkuvõte[[#This Row],[PR kood]],Kuluartiklid[Arve kuupäev],\">=\"&L$3,Kuluartiklid[Arve kuupäev],\"<=\"&L$4)+SUMIFS(Muu[Tšeki summa],Muu[PR kood],Kuuväljaminekute_kokkuvõte[[#This Row],[PR kood]],Muu[Tšeki taotluse alustamise kuupäev],\">=\"&DATEVALUE(\" 1 \"&Kuuväljaminekute_kokkuvõte[[#Headers],[September]]&_xlfn.SINGLE(_AASTA)),Muu[Tšeki taotluse alustamise kuupäev],\"<=\"&L$4)","v":{"v":0,"d":"0.00 €"}},{"$f":"SUMIFS(Kuluartiklid[Tšeki summa],Kuluartiklid[PR kood],Kuuväljaminekute_kokkuvõte[[#This Row],[PR kood]],Kuluartiklid[Arve kuupäev],\">=\"&M$3,Kuluartiklid[Arve kuupäev],\"<=\"&M$4)+SUMIFS(Muu[Tšeki summa],Muu[PR kood],Kuuväljaminekute_kokkuvõte[[#This Row],[PR kood]],Muu[Tšeki taotluse alustamise kuupäev],\">=\"&DATEVALUE(\" 1 \"&Kuuväljaminekute_kokkuvõte[[#Headers],[Oktoober]]&_xlfn.SINGLE(_AASTA)),Muu[Tšeki taotluse alustamise kuupäev],\"<=\"&M$4)","v":{"v":0,"d":"0.00 €"}},{"$f":"SUMIFS(Kuluartiklid[Tšeki summa],Kuluartiklid[PR kood],Kuuväljaminekute_kokkuvõte[[#This Row],[PR kood]],Kuluartiklid[Arve kuupäev],\">=\"&N$3,Kuluartiklid[Arve kuupäev],\"<=\"&N$4)+SUMIFS(Muu[Tšeki summa],Muu[PR kood],Kuuväljaminekute_kokkuvõte[[#This Row],[PR kood]],Muu[Tšeki taotluse alustamise kuupäev],\">=\"&DATEVALUE(\" 1 \"&Kuuväljaminekute_kokkuvõte[[#Headers],[November]]&_xlfn.SINGLE(_AASTA)),Muu[Tšeki taotluse alustamise kuupäev],\"<=\"&N$4)","v":{"v":0,"d":"0.00 €"}},{"$f":"SUMIFS(Kuluartiklid[Tšeki summa],Kuluartiklid[PR kood],Kuuväljaminekute_kokkuvõte[[#This Row],[PR kood]],Kuluartiklid[Arve kuupäev],\">=\"&O$3,Kuluartiklid[Arve kuupäev],\"<=\"&O$4)+SUMIFS(Muu[Tšeki summa],Muu[PR kood],Kuuväljaminekute_kokkuvõte[[#This Row],[PR kood]],Muu[Tšeki taotluse alustamise kuupäev],\">=\"&DATEVALUE(\" 1 \"&Kuuväljaminekute_kokkuvõte[[#Headers],[Detsember]]&_xlfn.SINGLE(_AASTA)),Muu[Tšeki taotluse alustamise kuupäev],\"<=\"&O$4)","v":{"v":0,"d":"0.00 €"}},{"$f":"SUM(Kuuväljaminekute_kokkuvõte[[#This Row],[Jaanuar]:[Detsember]])","v":{"v":0,"d":"0.00 €"}}]
[null,7000,"Arvutid",{"$f":"SUMIFS(Kuluartiklid[Tšeki summa],Kuluartiklid[PR kood],Kuuväljaminekute_kokkuvõte[[#This Row],[PR kood]],Kuluartiklid[Arve kuupäev],\">=\"&D$3,Kuluartiklid[Arve kuupäev],\"<=\"&D$4)+SUMIFS(Muu[Tšeki summa],Muu[PR kood],Kuuväljaminekute_kokkuvõte[[#This Row],[PR kood]],Muu[Tšeki taotluse alustamise kuupäev],\">=\"&DATEVALUE(\" 1 \"&Kuuväljaminekute_kokkuvõte[[#Headers],[Jaanuar]]&_xlfn.SINGLE(_AASTA)),Muu[Tšeki taotluse alustamise kuupäev],\"<=\"&D$4)","v":{"v":0,"d":"0.00 €"}},{"$f":"SUMIFS(Kuluartiklid[Tšeki summa],Kuluartiklid[PR kood],Kuuväljaminekute_kokkuvõte[[#This Row],[PR kood]],Kuluartiklid[Arve kuupäev],\">=\"&E$3,Kuluartiklid[Arve kuupäev],\"<=\"&E$4)+SUMIFS(Muu[Tšeki summa],Muu[PR kood],Kuuväljaminekute_kokkuvõte[[#This Row],[PR kood]],Muu[Tšeki taotluse alustamise kuupäev],\">=\"&DATEVALUE(\" 1 \"&Kuuväljaminekute_kokkuvõte[[#Headers],[Veebruar]]&_xlfn.SINGLE(_AASTA)),Muu[Tšeki taotluse alustamise kuupäev],\"<=\"&E$4)","v":{"v":0,"d":"0.00 €"}},{"$f":"SUMIFS(Kuluartiklid[Tšeki summa],Kuluartiklid[PR kood],Kuuväljaminekute_kokkuvõte[[#This Row],[PR kood]],Kuluartiklid[Arve kuupäev],\">=\"&F$3,Kuluartiklid[Arve kuupäev],\"<=\"&F$4)+SUMIFS(Muu[Tšeki summa],Muu[PR kood],Kuuväljaminekute_kokkuvõte[[#This Row],[PR kood]],Muu[Tšeki taotluse alustamise kuupäev],\">=\"&DATEVALUE(\" 1 \"&Kuuväljaminekute_kokkuvõte[[#Headers],[Märts]]&_xlfn.SINGLE(_AASTA)),Muu[Tšeki taotluse alustamise kuupäev],\"<=\"&F$4)","v":{"v":0,"d":"0.00 €"}},{"$f":"SUMIFS(Kuluartiklid[Tšeki summa],Kuluartiklid[PR kood],Kuuväljaminekute_kokkuvõte[[#This Row],[PR kood]],Kuluartiklid[Arve kuupäev],\">=\"&G$3,Kuluartiklid[Arve kuupäev],\"<=\"&G$4)+SUMIFS(Muu[Tšeki summa],Muu[PR kood],Kuuväljaminekute_kokkuvõte[[#This Row],[PR kood]],Muu[Tšeki taotluse alustamise kuupäev],\">=\"&DATEVALUE(\" 1 \"&Kuuväljaminekute_kokkuvõte[[#Headers],[Aprill]]&_xlfn.SINGLE(_AASTA)),Muu[Tšeki taotluse alustamise kuupäev],\"<=\"&G$4)","v":{"v":0,"d":"0.00 €"}},{"$f":"SUMIFS(Kuluartiklid[Tšeki summa],Kuluartiklid[PR kood],Kuuväljaminekute_kokkuvõte[[#This Row],[PR kood]],Kuluartiklid[Arve kuupäev],\">=\"&H$3,Kuluartiklid[Arve kuupäev],\"<=\"&H$4)+SUMIFS(Muu[Tšeki summa],Muu[PR kood],Kuuväljaminekute_kokkuvõte[[#This Row],[PR kood]],Muu[Tšeki taotluse alustamise kuupäev],\">=\"&DATEVALUE(\" 1 \"&Kuuväljaminekute_kokkuvõte[[#Headers],[Mai]]&_xlfn.SINGLE(_AASTA)),Muu[Tšeki taotluse alustamise kuupäev],\"<=\"&H$4)","v":{"v":0,"d":"0.00 €"}},{"$f":"SUMIFS(Kuluartiklid[Tšeki summa],Kuluartiklid[PR kood],Kuuväljaminekute_kokkuvõte[[#This Row],[PR kood]],Kuluartiklid[Arve kuupäev],\">=\"&I$3,Kuluartiklid[Arve kuupäev],\"<=\"&I$4)+SUMIFS(Muu[Tšeki summa],Muu[PR kood],Kuuväljaminekute_kokkuvõte[[#This Row],[PR kood]],Muu[Tšeki taotluse alustamise kuupäev],\">=\"&DATEVALUE(\" 1 \"&Kuuväljaminekute_kokkuvõte[[#Headers],[Juuni]]&_xlfn.SINGLE(_AASTA)),Muu[Tšeki taotluse alustamise kuupäev],\"<=\"&I$4)","v":{"v":0,"d":"0.00 €"}},{"$f":"SUMIFS(Kuluartiklid[Tšeki summa],Kuluartiklid[PR kood],Kuuväljaminekute_kokkuvõte[[#This Row],[PR kood]],Kuluartiklid[Arve kuupäev],\">=\"&J$3,Kuluartiklid[Arve kuupäev],\"<=\"&J$4)+SUMIFS(Muu[Tšeki summa],Muu[PR kood],Kuuväljaminekute_kokkuvõte[[#This Row],[PR kood]],Muu[Tšeki taotluse alustamise kuupäev],\">=\"&DATEVALUE(\" 1 \"&Kuuväljaminekute_kokkuvõte[[#Headers],[Juuli]]&_xlfn.SINGLE(_AASTA)),Muu[Tšeki taotluse alustamise kuupäev],\"<=\"&J$4)","v":{"v":0,"d":"0.00 €"}},{"$f":"SUMIFS(Kuluartiklid[Tšeki summa],Kuluartiklid[PR kood],Kuuväljaminekute_kokkuvõte[[#This Row],[PR kood]],Kuluartiklid[Arve kuupäev],\">=\"&K$3,Kuluartiklid[Arve kuupäev],\"<=\"&K$4)+SUMIFS(Muu[Tšeki summa],Muu[PR kood],Kuuväljaminekute_kokkuvõte[[#This Row],[PR kood]],Muu[Tšeki taotluse alustamise kuupäev],\">=\"&DATEVALUE(\" 1 \"&Kuuväljaminekute_kokkuvõte[[#Headers],[August]]&_xlfn.SINGLE(_AASTA)),Muu[Tšeki taotluse alustamise kuupäev],\"<=\"&K$4)","v":{"v":0,"d":"0.00 €"}},{"$f":"SUMIFS(Kuluartiklid[Tšeki summa],Kuluartiklid[PR kood],Kuuväljaminekute_kokkuvõte[[#This Row],[PR kood]],Kuluartiklid[Arve kuupäev],\">=\"&L$3,Kuluartiklid[Arve kuupäev],\"<=\"&L$4)+SUMIFS(Muu[Tšeki summa],Muu[PR kood],Kuuväljaminekute_kokkuvõte[[#This Row],[PR kood]],Muu[Tšeki taotluse alustamise kuupäev],\">=\"&DATEVALUE(\" 1 \"&Kuuväljaminekute_kokkuvõte[[#Headers],[September]]&_xlfn.SINGLE(_AASTA)),Muu[Tšeki taotluse alustamise kuupäev],\"<=\"&L$4)","v":{"v":0,"d":"0.00 €"}},{"$f":"SUMIFS(Kuluartiklid[Tšeki summa],Kuluartiklid[PR kood],Kuuväljaminekute_kokkuvõte[[#This Row],[PR kood]],Kuluartiklid[Arve kuupäev],\">=\"&M$3,Kuluartiklid[Arve kuupäev],\"<=\"&M$4)+SUMIFS(Muu[Tšeki summa],Muu[PR kood],Kuuväljaminekute_kokkuvõte[[#This Row],[PR kood]],Muu[Tšeki taotluse alustamise kuupäev],\">=\"&DATEVALUE(\" 1 \"&Kuuväljaminekute_kokkuvõte[[#Headers],[Oktoober]]&_xlfn.SINGLE(_AASTA)),Muu[Tšeki taotluse alustamise kuupäev],\"<=\"&M$4)","v":{"v":0,"d":"0.00 €"}},{"$f":"SUMIFS(Kuluartiklid[Tšeki summa],Kuluartiklid[PR kood],Kuuväljaminekute_kokkuvõte[[#This Row],[PR kood]],Kuluartiklid[Arve kuupäev],\">=\"&N$3,Kuluartiklid[Arve kuupäev],\"<=\"&N$4)+SUMIFS(Muu[Tšeki summa],Muu[PR kood],Kuuväljaminekute_kokkuvõte[[#This Row],[PR kood]],Muu[Tšeki taotluse alustamise kuupäev],\">=\"&DATEVALUE(\" 1 \"&Kuuväljaminekute_kokkuvõte[[#Headers],[November]]&_xlfn.SINGLE(_AASTA)),Muu[Tšeki taotluse alustamise kuupäev],\"<=\"&N$4)","v":{"v":0,"d":"0.00 €"}},{"$f":"SUMIFS(Kuluartiklid[Tšeki summa],Kuluartiklid[PR kood],Kuuväljaminekute_kokkuvõte[[#This Row],[PR kood]],Kuluartiklid[Arve kuupäev],\">=\"&O$3,Kuluartiklid[Arve kuupäev],\"<=\"&O$4)+SUMIFS(Muu[Tšeki summa],Muu[PR kood],Kuuväljaminekute_kokkuvõte[[#This Row],[PR kood]],Muu[Tšeki taotluse alustamise kuupäev],\">=\"&DATEVALUE(\" 1 \"&Kuuväljaminekute_kokkuvõte[[#Headers],[Detsember]]&_xlfn.SINGLE(_AASTA)),Muu[Tšeki taotluse alustamise kuupäev],\"<=\"&O$4)","v":{"v":0,"d":"0.00 €"}},{"$f":"SUM(Kuuväljaminekute_kokkuvõte[[#This Row],[Jaanuar]:[Detsember]])","v":{"v":0,"d":"0.00 €"}}]
[null,8000,"Meditsiiniline leping",{"$f":"SUMIFS(Kuluartiklid[Tšeki summa],Kuluartiklid[PR kood],Kuuväljaminekute_kokkuvõte[[#This Row],[PR kood]],Kuluartiklid[Arve kuupäev],\">=\"&D$3,Kuluartiklid[Arve kuupäev],\"<=\"&D$4)+SUMIFS(Muu[Tšeki summa],Muu[PR kood],Kuuväljaminekute_kokkuvõte[[#This Row],[PR kood]],Muu[Tšeki taotluse alustamise kuupäev],\">=\"&DATEVALUE(\" 1 \"&Kuuväljaminekute_kokkuvõte[[#Headers],[Jaanuar]]&_xlfn.SINGLE(_AASTA)),Muu[Tšeki taotluse alustamise kuupäev],\"<=\"&D$4)","v":{"v":0,"d":"0.00 €"}},{"$f":"SUMIFS(Kuluartiklid[Tšeki summa],Kuluartiklid[PR kood],Kuuväljaminekute_kokkuvõte[[#This Row],[PR kood]],Kuluartiklid[Arve kuupäev],\">=\"&E$3,Kuluartiklid[Arve kuupäev],\"<=\"&E$4)+SUMIFS(Muu[Tšeki summa],Muu[PR kood],Kuuväljaminekute_kokkuvõte[[#This Row],[PR kood]],Muu[Tšeki taotluse alustamise kuupäev],\">=\"&DATEVALUE(\" 1 \"&Kuuväljaminekute_kokkuvõte[[#Headers],[Veebruar]]&_xlfn.SINGLE(_AASTA)),Muu[Tšeki taotluse alustamise kuupäev],\"<=\"&E$4)","v":{"v":0,"d":"0.00 €"}},{"$f":"SUMIFS(Kuluartiklid[Tšeki summa],Kuluartiklid[PR kood],Kuuväljaminekute_kokkuvõte[[#This Row],[PR kood]],Kuluartiklid[Arve kuupäev],\">=\"&F$3,Kuluartiklid[Arve kuupäev],\"<=\"&F$4)+SUMIFS(Muu[Tšeki summa],Muu[PR kood],Kuuväljaminekute_kokkuvõte[[#This Row],[PR kood]],Muu[Tšeki taotluse alustamise kuupäev],\">=\"&DATEVALUE(\" 1 \"&Kuuväljaminekute_kokkuvõte[[#Headers],[Märts]]&_xlfn.SINGLE(_AASTA)),Muu[Tšeki taotluse alustamise kuupäev],\"<=\"&F$4)","v":{"v":0,"d":"0.00 €"}},{"$f":"SUMIFS(Kuluartiklid[Tšeki summa],Kuluartiklid[PR kood],Kuuväljaminekute_kokkuvõte[[#This Row],[PR kood]],Kuluartiklid[Arve kuupäev],\">=\"&G$3,Kuluartiklid[Arve kuupäev],\"<=\"&G$4)+SUMIFS(Muu[Tšeki summa],Muu[PR kood],Kuuväljaminekute_kokkuvõte[[#This Row],[PR kood]],Muu[Tšeki taotluse alustamise kuupäev],\">=\"&DATEVALUE(\" 1 \"&Kuuväljaminekute_kokkuvõte[[#Headers],[Aprill]]&_xlfn.SINGLE(_AASTA)),Muu[Tšeki taotluse alustamise kuupäev],\"<=\"&G$4)","v":{"v":0,"d":"0.00 €"}},{"$f":"SUMIFS(Kuluartiklid[Tšeki summa],Kuluartiklid[PR kood],Kuuväljaminekute_kokkuvõte[[#This Row],[PR kood]],Kuluartiklid[Arve kuupäev],\">=\"&H$3,Kuluartiklid[Arve kuupäev],\"<=\"&H$4)+SUMIFS(Muu[Tšeki summa],Muu[PR kood],Kuuväljaminekute_kokkuvõte[[#This Row],[PR kood]],Muu[Tšeki taotluse alustamise kuupäev],\">=\"&DATEVALUE(\" 1 \"&Kuuväljaminekute_kokkuvõte[[#Headers],[Mai]]&_xlfn.SINGLE(_AASTA)),Muu[Tšeki taotluse alustamise kuupäev],\"<=\"&H$4)","v":{"v":0,"d":"0.00 €"}},{"$f":"SUMIFS(Kuluartiklid[Tšeki summa],Kuluartiklid[PR kood],Kuuväljaminekute_kokkuvõte[[#This Row],[PR kood]],Kuluartiklid[Arve kuupäev],\">=\"&I$3,Kuluartiklid[Arve kuupäev],\"<=\"&I$4)+SUMIFS(Muu[Tšeki summa],Muu[PR kood],Kuuväljaminekute_kokkuvõte[[#This Row],[PR kood]],Muu[Tšeki taotluse alustamise kuupäev],\">=\"&DATEVALUE(\" 1 \"&Kuuväljaminekute_kokkuvõte[[#Headers],[Juuni]]&_xlfn.SINGLE(_AASTA)),Muu[Tšeki taotluse alustamise kuupäev],\"<=\"&I$4)","v":{"v":0,"d":"0.00 €"}},{"$f":"SUMIFS(Kuluartiklid[Tšeki summa],Kuluartiklid[PR kood],Kuuväljaminekute_kokkuvõte[[#This Row],[PR kood]],Kuluartiklid[Arve kuupäev],\">=\"&J$3,Kuluartiklid[Arve kuupäev],\"<=\"&J$4)+SUMIFS(Muu[Tšeki summa],Muu[PR kood],Kuuväljaminekute_kokkuvõte[[#This Row],[PR kood]],Muu[Tšeki taotluse alustamise kuupäev],\">=\"&DATEVALUE(\" 1 \"&Kuuväljaminekute_kokkuvõte[[#Headers],[Juuli]]&_xlfn.SINGLE(_AASTA)),Muu[Tšeki taotluse alustamise kuupäev],\"<=\"&J$4)","v":{"v":0,"d":"0.00 €"}},{"$f":"SUMIFS(Kuluartiklid[Tšeki summa],Kuluartiklid[PR kood],Kuuväljaminekute_kokkuvõte[[#This Row],[PR kood]],Kuluartiklid[Arve kuupäev],\">=\"&K$3,Kuluartiklid[Arve kuupäev],\"<=\"&K$4)+SUMIFS(Muu[Tšeki summa],Muu[PR kood],Kuuväljaminekute_kokkuvõte[[#This Row],[PR kood]],Muu[Tšeki taotluse alustamise kuupäev],\">=\"&DATEVALUE(\" 1 \"&Kuuväljaminekute_kokkuvõte[[#Headers],[August]]&_xlfn.SINGLE(_AASTA)),Muu[Tšeki taotluse alustamise kuupäev],\"<=\"&K$4)","v":{"v":0,"d":"0.00 €"}},{"$f":"SUMIFS(Kuluartiklid[Tšeki summa],Kuluartiklid[PR kood],Kuuväljaminekute_kokkuvõte[[#This Row],[PR kood]],Kuluartiklid[Arve kuupäev],\">=\"&L$3,Kuluartiklid[Arve kuupäev],\"<=\"&L$4)+SUMIFS(Muu[Tšeki summa],Muu[PR kood],Kuuväljaminekute_kokkuvõte[[#This Row],[PR kood]],Muu[Tšeki taotluse alustamise kuupäev],\">=\"&DATEVALUE(\" 1 \"&Kuuväljaminekute_kokkuvõte[[#Headers],[September]]&_xlfn.SINGLE(_AASTA)),Muu[Tšeki taotluse alustamise kuupäev],\"<=\"&L$4)","v":{"v":0,"d":"0.00 €"}},{"$f":"SUMIFS(Kuluartiklid[Tšeki summa],Kuluartiklid[PR kood],Kuuväljaminekute_kokkuvõte[[#This Row],[PR kood]],Kuluartiklid[Arve kuupäev],\">=\"&M$3,Kuluartiklid[Arve kuupäev],\"<=\"&M$4)+SUMIFS(Muu[Tšeki summa],Muu[PR kood],Kuuväljaminekute_kokkuvõte[[#This Row],[PR kood]],Muu[Tšeki taotluse alustamise kuupäev],\">=\"&DATEVALUE(\" 1 \"&Kuuväljaminekute_kokkuvõte[[#Headers],[Oktoober]]&_xlfn.SINGLE(_AASTA)),Muu[Tšeki taotluse alustamise kuupäev],\"<=\"&M$4)","v":{"v":0,"d":"0.00 €"}},{"$f":"SUMIFS(Kuluartiklid[Tšeki summa],Kuluartiklid[PR kood],Kuuväljaminekute_kokkuvõte[[#This Row],[PR kood]],Kuluartiklid[Arve kuupäev],\">=\"&N$3,Kuluartiklid[Arve kuupäev],\"<=\"&N$4)+SUMIFS(Muu[Tšeki summa],Muu[PR kood],Kuuväljaminekute_kokkuvõte[[#This Row],[PR kood]],Muu[Tšeki taotluse alustamise kuupäev],\">=\"&DATEVALUE(\" 1 \"&Kuuväljaminekute_kokkuvõte[[#Headers],[November]]&_xlfn.SINGLE(_AASTA)),Muu[Tšeki taotluse alustamise kuupäev],\"<=\"&N$4)","v":{"v":0,"d":"0.00 €"}},{"$f":"SUMIFS(Kuluartiklid[Tšeki summa],Kuluartiklid[PR kood],Kuuväljaminekute_kokkuvõte[[#This Row],[PR kood]],Kuluartiklid[Arve kuupäev],\">=\"&O$3,Kuluartiklid[Arve kuupäev],\"<=\"&O$4)+SUMIFS(Muu[Tšeki summa],Muu[PR kood],Kuuväljaminekute_kokkuvõte[[#This Row],[PR kood]],Muu[Tšeki taotluse alustamise kuupäev],\">=\"&DATEVALUE(\" 1 \"&Kuuväljaminekute_kokkuvõte[[#Headers],[Detsember]]&_xlfn.SINGLE(_AASTA)),Muu[Tšeki taotluse alustamise kuupäev],\"<=\"&O$4)","v":{"v":0,"d":"0.00 €"}},{"$f":"SUM(Kuuväljaminekute_kokkuvõte[[#This Row],[Jaanuar]:[Detsember]])","v":{"v":0,"d":"0.00 €"}}]
[null,9000,"Hoone kulud",{"$f":"SUMIFS(Kuluartiklid[Tšeki summa],Kuluartiklid[PR kood],Kuuväljaminekute_kokkuvõte[[#This Row],[PR kood]],Kuluartiklid[Arve kuupäev],\">=\"&D$3,Kuluartiklid[Arve kuupäev],\"<=\"&D$4)+SUMIFS(Muu[Tšeki summa],Muu[PR kood],Kuuväljaminekute_kokkuvõte[[#This Row],[PR kood]],Muu[Tšeki taotluse alustamise kuupäev],\">=\"&DATEVALUE(\" 1 \"&Kuuväljaminekute_kokkuvõte[[#Headers],[Jaanuar]]&_xlfn.SINGLE(_AASTA)),Muu[Tšeki taotluse alustamise kuupäev],\"<=\"&D$4)","v":{"v":0,"d":"0.00 €"}},{"$f":"SUMIFS(Kuluartiklid[Tšeki summa],Kuluartiklid[PR kood],Kuuväljaminekute_kokkuvõte[[#This Row],[PR kood]],Kuluartiklid[Arve kuupäev],\">=\"&E$3,Kuluartiklid[Arve kuupäev],\"<=\"&E$4)+SUMIFS(Muu[Tšeki summa],Muu[PR kood],Kuuväljaminekute_kokkuvõte[[#This Row],[PR kood]],Muu[Tšeki taotluse alustamise kuupäev],\">=\"&DATEVALUE(\" 1 \"&Kuuväljaminekute_kokkuvõte[[#Headers],[Veebruar]]&_xlfn.SINGLE(_AASTA)),Muu[Tšeki taotluse alustamise kuupäev],\"<=\"&E$4)","v":{"v":0,"d":"0.00 €"}},{"$f":"SUMIFS(Kuluartiklid[Tšeki summa],Kuluartiklid[PR kood],Kuuväljaminekute_kokkuvõte[[#This Row],[PR kood]],Kuluartiklid[Arve kuupäev],\">=\"&F$3,Kuluartiklid[Arve kuupäev],\"<=\"&F$4)+SUMIFS(Muu[Tšeki summa],Muu[PR kood],Kuuväljaminekute_kokkuvõte[[#This Row],[PR kood]],Muu[Tšeki taotluse alustamise kuupäev],\">=\"&DATEVALUE(\" 1 \"&Kuuväljaminekute_kokkuvõte[[#Headers],[Märts]]&_xlfn.SINGLE(_AASTA)),Muu[Tšeki taotluse alustamise kuupäev],\"<=\"&F$4)","v":{"v":0,"d":"0.00 €"}},{"$f":"SUMIFS(Kuluartiklid[Tšeki summa],Kuluartiklid[PR kood],Kuuväljaminekute_kokkuvõte[[#This Row],[PR kood]],Kuluartiklid[Arve kuupäev],\">=\"&G$3,Kuluartiklid[Arve kuupäev],\"<=\"&G$4)+SUMIFS(Muu[Tšeki summa],Muu[PR kood],Kuuväljaminekute_kokkuvõte[[#This Row],[PR kood]],Muu[Tšeki taotluse alustamise kuupäev],\">=\"&DATEVALUE(\" 1 \"&Kuuväljaminekute_kokkuvõte[[#Headers],[Aprill]]&_xlfn.SINGLE(_AASTA)),Muu[Tšeki taotluse alustamise kuupäev],\"<=\"&G$4)","v":{"v":0,"d":"0.00 €"}},{"$f":"SUMIFS(Kuluartiklid[Tšeki summa],Kuluartiklid[PR kood],Kuuväljaminekute_kokkuvõte[[#This Row],[PR kood]],Kuluartiklid[Arve kuupäev],\">=\"&H$3,Kuluartiklid[Arve kuupäev],\"<=\"&H$4)+SUMIFS(Muu[Tšeki summa],Muu[PR kood],Kuuväljaminekute_kokkuvõte[[#This Row],[PR kood]],Muu[Tšeki taotluse alustamise kuupäev],\">=\"&DATEVALUE(\" 1 \"&Kuuväljaminekute_kokkuvõte[[#Headers],[Mai]]&_xlfn.SINGLE(_AASTA)),Muu[Tšeki taotluse alustamise kuupäev],\"<=\"&H$4)","v":{"v":0,"d":"0.00 €"}},{"$f":"SUMIFS(Kuluartiklid[Tšeki summa],Kuluartiklid[PR kood],Kuuväljaminekute_kokkuvõte[[#This Row],[PR kood]],Kuluartiklid[Arve kuupäev],\">=\"&I$3,Kuluartiklid[Arve kuupäev],\"<=\"&I$4)+SUMIFS(Muu[Tšeki summa],Muu[PR kood],Kuuväljaminekute_kokkuvõte[[#This Row],[PR kood]],Muu[Tšeki taotluse alustamise kuupäev],\">=\"&DATEVALUE(\" 1 \"&Kuuväljaminekute_kokkuvõte[[#Headers],[Juuni]]&_xlfn.SINGLE(_AASTA)),Muu[Tšeki taotluse alustamise kuupäev],\"<=\"&I$4)","v":{"v":0,"d":"0.00 €"}},{"$f":"SUMIFS(Kuluartiklid[Tšeki summa],Kuluartiklid[PR kood],Kuuväljaminekute_kokkuvõte[[#This Row],[PR kood]],Kuluartiklid[Arve kuupäev],\">=\"&J$3,Kuluartiklid[Arve kuupäev],\"<=\"&J$4)+SUMIFS(Muu[Tšeki summa],Muu[PR kood],Kuuväljaminekute_kokkuvõte[[#This Row],[PR kood]],Muu[Tšeki taotluse alustamise kuupäev],\">=\"&DATEVALUE(\" 1 \"&Kuuväljaminekute_kokkuvõte[[#Headers],[Juuli]]&_xlfn.SINGLE(_AASTA)),Muu[Tšeki taotluse alustamise kuupäev],\"<=\"&J$4)","v":{"v":0,"d":"0.00 €"}},{"$f":"SUMIFS(Kuluartiklid[Tšeki summa],Kuluartiklid[PR kood],Kuuväljaminekute_kokkuvõte[[#This Row],[PR kood]],Kuluartiklid[Arve kuupäev],\">=\"&K$3,Kuluartiklid[Arve kuupäev],\"<=\"&K$4)+SUMIFS(Muu[Tšeki summa],Muu[PR kood],Kuuväljaminekute_kokkuvõte[[#This Row],[PR kood]],Muu[Tšeki taotluse alustamise kuupäev],\">=\"&DATEVALUE(\" 1 \"&Kuuväljaminekute_kokkuvõte[[#Headers],[August]]&_xlfn.SINGLE(_AASTA)),Muu[Tšeki taotluse alustamise kuupäev],\"<=\"&K$4)","v":{"v":0,"d":"0.00 €"}},{"$f":"SUMIFS(Kuluartiklid[Tšeki summa],Kuluartiklid[PR kood],Kuuväljaminekute_kokkuvõte[[#This Row],[PR kood]],Kuluartiklid[Arve kuupäev],\">=\"&L$3,Kuluartiklid[Arve kuupäev],\"<=\"&L$4)+SUMIFS(Muu[Tšeki summa],Muu[PR kood],Kuuväljaminekute_kokkuvõte[[#This Row],[PR kood]],Muu[Tšeki taotluse alustamise kuupäev],\">=\"&DATEVALUE(\" 1 \"&Kuuväljaminekute_kokkuvõte[[#Headers],[September]]&_xlfn.SINGLE(_AASTA)),Muu[Tšeki taotluse alustamise kuupäev],\"<=\"&L$4)","v":{"v":0,"d":"0.00 €"}},{"$f":"SUMIFS(Kuluartiklid[Tšeki summa],Kuluartiklid[PR kood],Kuuväljaminekute_kokkuvõte[[#This Row],[PR kood]],Kuluartiklid[Arve kuupäev],\">=\"&M$3,Kuluartiklid[Arve kuupäev],\"<=\"&M$4)+SUMIFS(Muu[Tšeki summa],Muu[PR kood],Kuuväljaminekute_kokkuvõte[[#This Row],[PR kood]],Muu[Tšeki taotluse alustamise kuupäev],\">=\"&DATEVALUE(\" 1 \"&Kuuväljaminekute_kokkuvõte[[#Headers],[Oktoober]]&_xlfn.SINGLE(_AASTA)),Muu[Tšeki taotluse alustamise kuupäev],\"<=\"&M$4)","v":{"v":0,"d":"0.00 €"}},{"$f":"SUMIFS(Kuluartiklid[Tšeki summa],Kuluartiklid[PR kood],Kuuväljaminekute_kokkuvõte[[#This Row],[PR kood]],Kuluartiklid[Arve kuupäev],\">=\"&N$3,Kuluartiklid[Arve kuupäev],\"<=\"&N$4)+SUMIFS(Muu[Tšeki summa],Muu[PR kood],Kuuväljaminekute_kokkuvõte[[#This Row],[PR kood]],Muu[Tšeki taotluse alustamise kuupäev],\">=\"&DATEVALUE(\" 1 \"&Kuuväljaminekute_kokkuvõte[[#Headers],[November]]&_xlfn.SINGLE(_AASTA)),Muu[Tšeki taotluse alustamise kuupäev],\"<=\"&N$4)","v":{"v":0,"d":"0.00 €"}},{"$f":"SUMIFS(Kuluartiklid[Tšeki summa],Kuluartiklid[PR kood],Kuuväljaminekute_kokkuvõte[[#This Row],[PR kood]],Kuluartiklid[Arve kuupäev],\">=\"&O$3,Kuluartiklid[Arve kuupäev],\"<=\"&O$4)+SUMIFS(Muu[Tšeki summa],Muu[PR kood],Kuuväljaminekute_kokkuvõte[[#This Row],[PR kood]],Muu[Tšeki taotluse alustamise kuupäev],\">=\"&DATEVALUE(\" 1 \"&Kuuväljaminekute_kokkuvõte[[#Headers],[Detsember]]&_xlfn.SINGLE(_AASTA)),Muu[Tšeki taotluse alustamise kuupäev],\"<=\"&O$4)","v":{"v":0,"d":"0.00 €"}},{"$f":"SUM(Kuuväljaminekute_kokkuvõte[[#This Row],[Jaanuar]:[Detsember]])","v":{"v":0,"d":"0.00 €"}}]
[null,10000,"Turundustegevus",{"$f":"SUMIFS(Kuluartiklid[Tšeki summa],Kuluartiklid[PR kood],Kuuväljaminekute_kokkuvõte[[#This Row],[PR kood]],Kuluartiklid[Arve kuupäev],\">=\"&D$3,Kuluartiklid[Arve kuupäev],\"<=\"&D$4)+SUMIFS(Muu[Tšeki summa],Muu[PR kood],Kuuväljaminekute_kokkuvõte[[#This Row],[PR kood]],Muu[Tšeki taotluse alustamise kuupäev],\">=\"&DATEVALUE(\" 1 \"&Kuuväljaminekute_kokkuvõte[[#Headers],[Jaanuar]]&_xlfn.SINGLE(_AASTA)),Muu[Tšeki taotluse alustamise kuupäev],\"<=\"&D$4)","v":{"v":0,"d":"0.00 €"}},{"$f":"SUMIFS(Kuluartiklid[Tšeki summa],Kuluartiklid[PR kood],Kuuväljaminekute_kokkuvõte[[#This Row],[PR kood]],Kuluartiklid[Arve kuupäev],\">=\"&E$3,Kuluartiklid[Arve kuupäev],\"<=\"&E$4)+SUMIFS(Muu[Tšeki summa],Muu[PR kood],Kuuväljaminekute_kokkuvõte[[#This Row],[PR kood]],Muu[Tšeki taotluse alustamise kuupäev],\">=\"&DATEVALUE(\" 1 \"&Kuuväljaminekute_kokkuvõte[[#Headers],[Veebruar]]&_xlfn.SINGLE(_AASTA)),Muu[Tšeki taotluse alustamise kuupäev],\"<=\"&E$4)","v":{"v":0,"d":"0.00 €"}},{"$f":"SUMIFS(Kuluartiklid[Tšeki summa],Kuluartiklid[PR kood],Kuuväljaminekute_kokkuvõte[[#This Row],[PR kood]],Kuluartiklid[Arve kuupäev],\">=\"&F$3,Kuluartiklid[Arve kuupäev],\"<=\"&F$4)+SUMIFS(Muu[Tšeki summa],Muu[PR kood],Kuuväljaminekute_kokkuvõte[[#This Row],[PR kood]],Muu[Tšeki taotluse alustamise kuupäev],\">=\"&DATEVALUE(\" 1 \"&Kuuväljaminekute_kokkuvõte[[#Headers],[Märts]]&_xlfn.SINGLE(_AASTA)),Muu[Tšeki taotluse alustamise kuupäev],\"<=\"&F$4)","v":{"v":0,"d":"0.00 €"}},{"$f":"SUMIFS(Kuluartiklid[Tšeki summa],Kuluartiklid[PR kood],Kuuväljaminekute_kokkuvõte[[#This Row],[PR kood]],Kuluartiklid[Arve kuupäev],\">=\"&G$3,Kuluartiklid[Arve kuupäev],\"<=\"&G$4)+SUMIFS(Muu[Tšeki summa],Muu[PR kood],Kuuväljaminekute_kokkuvõte[[#This Row],[PR kood]],Muu[Tšeki taotluse alustamise kuupäev],\">=\"&DATEVALUE(\" 1 \"&Kuuväljaminekute_kokkuvõte[[#Headers],[Aprill]]&_xlfn.SINGLE(_AASTA)),Muu[Tšeki taotluse alustamise kuupäev],\"<=\"&G$4)","v":{"v":0,"d":"0.00 €"}},{"$f":"SUMIFS(Kuluartiklid[Tšeki summa],Kuluartiklid[PR kood],Kuuväljaminekute_kokkuvõte[[#This Row],[PR kood]],Kuluartiklid[Arve kuupäev],\">=\"&H$3,Kuluartiklid[Arve kuupäev],\"<=\"&H$4)+SUMIFS(Muu[Tšeki summa],Muu[PR kood],Kuuväljaminekute_kokkuvõte[[#This Row],[PR kood]],Muu[Tšeki taotluse alustamise kuupäev],\">=\"&DATEVALUE(\" 1 \"&Kuuväljaminekute_kokkuvõte[[#Headers],[Mai]]&_xlfn.SINGLE(_AASTA)),Muu[Tšeki taotluse alustamise kuupäev],\"<=\"&H$4)","v":{"v":0,"d":"0.00 €"}},{"$f":"SUMIFS(Kuluartiklid[Tšeki summa],Kuluartiklid[PR kood],Kuuväljaminekute_kokkuvõte[[#This Row],[PR kood]],Kuluartiklid[Arve kuupäev],\">=\"&I$3,Kuluartiklid[Arve kuupäev],\"<=\"&I$4)+SUMIFS(Muu[Tšeki summa],Muu[PR kood],Kuuväljaminekute_kokkuvõte[[#This Row],[PR kood]],Muu[Tšeki taotluse alustamise kuupäev],\">=\"&DATEVALUE(\" 1 \"&Kuuväljaminekute_kokkuvõte[[#Headers],[Juuni]]&_xlfn.SINGLE(_AASTA)),Muu[Tšeki taotluse alustamise kuupäev],\"<=\"&I$4)","v":{"v":0,"d":"0.00 €"}},{"$f":"SUMIFS(Kuluartiklid[Tšeki summa],Kuluartiklid[PR kood],Kuuväljaminekute_kokkuvõte[[#This Row],[PR kood]],Kuluartiklid[Arve kuupäev],\">=\"&J$3,Kuluartiklid[Arve kuupäev],\"<=\"&J$4)+SUMIFS(Muu[Tšeki summa],Muu[PR kood],Kuuväljaminekute_kokkuvõte[[#This Row],[PR kood]],Muu[Tšeki taotluse alustamise kuupäev],\">=\"&DATEVALUE(\" 1 \"&Kuuväljaminekute_kokkuvõte[[#Headers],[Juuli]]&_xlfn.SINGLE(_AASTA)),Muu[Tšeki taotluse alustamise kuupäev],\"<=\"&J$4)","v":{"v":0,"d":"0.00 €"}},{"$f":"SUMIFS(Kuluartiklid[Tšeki summa],Kuluartiklid[PR kood],Kuuväljaminekute_kokkuvõte[[#This Row],[PR kood]],Kuluartiklid[Arve kuupäev],\">=\"&K$3,Kuluartiklid[Arve kuupäev],\"<=\"&K$4)+SUMIFS(Muu[Tšeki summa],Muu[PR kood],Kuuväljaminekute_kokkuvõte[[#This Row],[PR kood]],Muu[Tšeki taotluse alustamise kuupäev],\">=\"&DATEVALUE(\" 1 \"&Kuuväljaminekute_kokkuvõte[[#Headers],[August]]&_xlfn.SINGLE(_AASTA)),Muu[Tšeki taotluse alustamise kuupäev],\"<=\"&K$4)","v":{"v":0,"d":"0.00 €"}},{"$f":"SUMIFS(Kuluartiklid[Tšeki summa],Kuluartiklid[PR kood],Kuuväljaminekute_kokkuvõte[[#This Row],[PR kood]],Kuluartiklid[Arve kuupäev],\">=\"&L$3,Kuluartiklid[Arve kuupäev],\"<=\"&L$4)+SUMIFS(Muu[Tšeki summa],Muu[PR kood],Kuuväljaminekute_kokkuvõte[[#This Row],[PR kood]],Muu[Tšeki taotluse alustamise kuupäev],\">=\"&DATEVALUE(\" 1 \"&Kuuväljaminekute_kokkuvõte[[#Headers],[September]]&_xlfn.SINGLE(_AASTA)),Muu[Tšeki taotluse alustamise kuupäev],\"<=\"&L$4)","v":{"v":0,"d":"0.00 €"}},{"$f":"SUMIFS(Kuluartiklid[Tšeki summa],Kuluartiklid[PR kood],Kuuväljaminekute_kokkuvõte[[#This Row],[PR kood]],Kuluartiklid[Arve kuupäev],\">=\"&M$3,Kuluartiklid[Arve kuupäev],\"<=\"&M$4)+SUMIFS(Muu[Tšeki summa],Muu[PR kood],Kuuväljaminekute_kokkuvõte[[#This Row],[PR kood]],Muu[Tšeki taotluse alustamise kuupäev],\">=\"&DATEVALUE(\" 1 \"&Kuuväljaminekute_kokkuvõte[[#Headers],[Oktoober]]&_xlfn.SINGLE(_AASTA)),Muu[Tšeki taotluse alustamise kuupäev],\"<=\"&M$4)","v":{"v":0,"d":"0.00 €"}},{"$f":"SUMIFS(Kuluartiklid[Tšeki summa],Kuluartiklid[PR kood],Kuuväljaminekute_kokkuvõte[[#This Row],[PR kood]],Kuluartiklid[Arve kuupäev],\">=\"&N$3,Kuluartiklid[Arve kuupäev],\"<=\"&N$4)+SUMIFS(Muu[Tšeki summa],Muu[PR kood],Kuuväljaminekute_kokkuvõte[[#This Row],[PR kood]],Muu[Tšeki taotluse alustamise kuupäev],\">=\"&DATEVALUE(\" 1 \"&Kuuväljaminekute_kokkuvõte[[#Headers],[November]]&_xlfn.SINGLE(_AASTA)),Muu[Tšeki taotluse alustamise kuupäev],\"<=\"&N$4)","v":{"v":0,"d":"0.00 €"}},{"$f":"SUMIFS(Kuluartiklid[Tšeki summa],Kuluartiklid[PR kood],Kuuväljaminekute_kokkuvõte[[#This Row],[PR kood]],Kuluartiklid[Arve kuupäev],\">=\"&O$3,Kuluartiklid[Arve kuupäev],\"<=\"&O$4)+SUMIFS(Muu[Tšeki summa],Muu[PR kood],Kuuväljaminekute_kokkuvõte[[#This Row],[PR kood]],Muu[Tšeki taotluse alustamise kuupäev],\">=\"&DATEVALUE(\" 1 \"&Kuuväljaminekute_kokkuvõte[[#Headers],[Detsember]]&_xlfn.SINGLE(_AASTA)),Muu[Tšeki taotluse alustamise kuupäev],\"<=\"&O$4)","v":{"v":0,"d":"0.00 €"}},{"$f":"SUM(Kuuväljaminekute_kokkuvõte[[#This Row],[Jaanuar]:[Detsember]])","v":{"v":0,"d":"0.00 €"}}]
[null,11000,"Heategevus",{"$f":"SUMIFS(Kuluartiklid[Tšeki summa],Kuluartiklid[PR kood],Kuuväljaminekute_kokkuvõte[[#This Row],[PR kood]],Kuluartiklid[Arve kuupäev],\">=\"&D$3,Kuluartiklid[Arve kuupäev],\"<=\"&D$4)+SUMIFS(Muu[Tšeki summa],Muu[PR kood],Kuuväljaminekute_kokkuvõte[[#This Row],[PR kood]],Muu[Tšeki taotluse alustamise kuupäev],\">=\"&DATEVALUE(\" 1 \"&Kuuväljaminekute_kokkuvõte[[#Headers],[Jaanuar]]&_xlfn.SINGLE(_AASTA)),Muu[Tšeki taotluse alustamise kuupäev],\"<=\"&D$4)","v":{"v":0,"d":"0.00 €"}},{"$f":"SUMIFS(Kuluartiklid[Tšeki summa],Kuluartiklid[PR kood],Kuuväljaminekute_kokkuvõte[[#This Row],[PR kood]],Kuluartiklid[Arve kuupäev],\">=\"&E$3,Kuluartiklid[Arve kuupäev],\"<=\"&E$4)+SUMIFS(Muu[Tšeki summa],Muu[PR kood],Kuuväljaminekute_kokkuvõte[[#This Row],[PR kood]],Muu[Tšeki taotluse alustamise kuupäev],\">=\"&DATEVALUE(\" 1 \"&Kuuväljaminekute_kokkuvõte[[#Headers],[Veebruar]]&_xlfn.SINGLE(_AASTA)),Muu[Tšeki taotluse alustamise kuupäev],\"<=\"&E$4)","v":{"v":0,"d":"0.00 €"}},{"$f":"SUMIFS(Kuluartiklid[Tšeki summa],Kuluartiklid[PR kood],Kuuväljaminekute_kokkuvõte[[#This Row],[PR kood]],Kuluartiklid[Arve kuupäev],\">=\"&F$3,Kuluartiklid[Arve kuupäev],\"<=\"&F$4)+SUMIFS(Muu[Tšeki summa],Muu[PR kood],Kuuväljaminekute_kokkuvõte[[#This Row],[PR kood]],Muu[Tšeki taotluse alustamise kuupäev],\">=\"&DATEVALUE(\" 1 \"&Kuuväljaminekute_kokkuvõte[[#Headers],[Märts]]&_xlfn.SINGLE(_AASTA)),Muu[Tšeki taotluse alustamise kuupäev],\"<=\"&F$4)","v":{"v":0,"d":"0.00 €"}},{"$f":"SUMIFS(Kuluartiklid[Tšeki summa],Kuluartiklid[PR kood],Kuuväljaminekute_kokkuvõte[[#This Row],[PR kood]],Kuluartiklid[Arve kuupäev],\">=\"&G$3,Kuluartiklid[Arve kuupäev],\"<=\"&G$4)+SUMIFS(Muu[Tšeki summa],Muu[PR kood],Kuuväljaminekute_kokkuvõte[[#This Row],[PR kood]],Muu[Tšeki taotluse alustamise kuupäev],\">=\"&DATEVALUE(\" 1 \"&Kuuväljaminekute_kokkuvõte[[#Headers],[Aprill]]&_xlfn.SINGLE(_AASTA)),Muu[Tšeki taotluse alustamise kuupäev],\"<=\"&G$4)","v":{"v":0,"d":"0.00 €"}},{"$f":"SUMIFS(Kuluartiklid[Tšeki summa],Kuluartiklid[PR kood],Kuuväljaminekute_kokkuvõte[[#This Row],[PR kood]],Kuluartiklid[Arve kuupäev],\">=\"&H$3,Kuluartiklid[Arve kuupäev],\"<=\"&H$4)+SUMIFS(Muu[Tšeki summa],Muu[PR kood],Kuuväljaminekute_kokkuvõte[[#This Row],[PR kood]],Muu[Tšeki taotluse alustamise kuupäev],\">=\"&DATEVALUE(\" 1 \"&Kuuväljaminekute_kokkuvõte[[#Headers],[Mai]]&_xlfn.SINGLE(_AASTA)),Muu[Tšeki taotluse alustamise kuupäev],\"<=\"&H$4)","v":{"v":0,"d":"0.00 €"}},{"$f":"SUMIFS(Kuluartiklid[Tšeki summa],Kuluartiklid[PR kood],Kuuväljaminekute_kokkuvõte[[#This Row],[PR kood]],Kuluartiklid[Arve kuupäev],\">=\"&I$3,Kuluartiklid[Arve kuupäev],\"<=\"&I$4)+SUMIFS(Muu[Tšeki summa],Muu[PR kood],Kuuväljaminekute_kokkuvõte[[#This Row],[PR kood]],Muu[Tšeki taotluse alustamise kuupäev],\">=\"&DATEVALUE(\" 1 \"&Kuuväljaminekute_kokkuvõte[[#Headers],[Juuni]]&_xlfn.SINGLE(_AASTA)),Muu[Tšeki taotluse alustamise kuupäev],\"<=\"&I$4)","v":{"v":0,"d":"0.00 €"}},{"$f":"SUMIFS(Kuluartiklid[Tšeki summa],Kuluartiklid[PR kood],Kuuväljaminekute_kokkuvõte[[#This Row],[PR kood]],Kuluartiklid[Arve kuupäev],\">=\"&J$3,Kuluartiklid[Arve kuupäev],\"<=\"&J$4)+SUMIFS(Muu[Tšeki summa],Muu[PR kood],Kuuväljaminekute_kokkuvõte[[#This Row],[PR kood]],Muu[Tšeki taotluse alustamise kuupäev],\">=\"&DATEVALUE(\" 1 \"&Kuuväljaminekute_kokkuvõte[[#Headers],[Juuli]]&_xlfn.SINGLE(_AASTA)),Muu[Tšeki taotluse alustamise kuupäev],\"<=\"&J$4)","v":{"v":0,"d":"0.00 €"}},{"$f":"SUMIFS(Kuluartiklid[Tšeki summa],Kuluartiklid[PR kood],Kuuväljaminekute_kokkuvõte[[#This Row],[PR kood]],Kuluartiklid[Arve kuupäev],\">=\"&K$3,Kuluartiklid[Arve kuupäev],\"<=\"&K$4)+SUMIFS(Muu[Tšeki summa],Muu[PR kood],Kuuväljaminekute_kokkuvõte[[#This Row],[PR kood]],Muu[Tšeki taotluse alustamise kuupäev],\">=\"&DATEVALUE(\" 1 \"&Kuuväljaminekute_kokkuvõte[[#Headers],[August]]&_xlfn.SINGLE(_AASTA)),Muu[Tšeki taotluse alustamise kuupäev],\"<=\"&K$4)","v":{"v":0,"d":"0.00 €"}},{"$f":"SUMIFS(Kuluartiklid[Tšeki summa],Kuluartiklid[PR kood],Kuuväljaminekute_kokkuvõte[[#This Row],[PR kood]],Kuluartiklid[Arve kuupäev],\">=\"&L$3,Kuluartiklid[Arve kuupäev],\"<=\"&L$4)+SUMIFS(Muu[Tšeki summa],Muu[PR kood],Kuuväljaminekute_kokkuvõte[[#This Row],[PR kood]],Muu[Tšeki taotluse alustamise kuupäev],\">=\"&DATEVALUE(\" 1 \"&Kuuväljaminekute_kokkuvõte[[#Headers],[September]]&_xlfn.SINGLE(_AASTA)),Muu[Tšeki taotluse alustamise kuupäev],\"<=\"&L$4)","v":{"v":0,"d":"0.00 €"}},{"$f":"SUMIFS(Kuluartiklid[Tšeki summa],Kuluartiklid[PR kood],Kuuväljaminekute_kokkuvõte[[#This Row],[PR kood]],Kuluartiklid[Arve kuupäev],\">=\"&M$3,Kuluartiklid[Arve kuupäev],\"<=\"&M$4)+SUMIFS(Muu[Tšeki summa],Muu[PR kood],Kuuväljaminekute_kokkuvõte[[#This Row],[PR kood]],Muu[Tšeki taotluse alustamise kuupäev],\">=\"&DATEVALUE(\" 1 \"&Kuuväljaminekute_kokkuvõte[[#Headers],[Oktoober]]&_xlfn.SINGLE(_AASTA)),Muu[Tšeki taotluse alustamise kuupäev],\"<=\"&M$4)","v":{"v":0,"d":"0.00 €"}},{"$f":"SUMIFS(Kuluartiklid[Tšeki summa],Kuluartiklid[PR kood],Kuuväljaminekute_kokkuvõte[[#This Row],[PR kood]],Kuluartiklid[Arve kuupäev],\">=\"&N$3,Kuluartiklid[Arve kuupäev],\"<=\"&N$4)+SUMIFS(Muu[Tšeki summa],Muu[PR kood],Kuuväljaminekute_kokkuvõte[[#This Row],[PR kood]],Muu[Tšeki taotluse alustamise kuupäev],\">=\"&DATEVALUE(\" 1 \"&Kuuväljaminekute_kokkuvõte[[#Headers],[November]]&_xlfn.SINGLE(_AASTA)),Muu[Tšeki taotluse alustamise kuupäev],\"<=\"&N$4)","v":{"v":0,"d":"0.00 €"}},{"$f":"SUMIFS(Kuluartiklid[Tšeki summa],Kuluartiklid[PR kood],Kuuväljaminekute_kokkuvõte[[#This Row],[PR kood]],Kuluartiklid[Arve kuupäev],\">=\"&O$3,Kuluartiklid[Arve kuupäev],\"<=\"&O$4)+SUMIFS(Muu[Tšeki summa],Muu[PR kood],Kuuväljaminekute_kokkuvõte[[#This Row],[PR kood]],Muu[Tšeki taotluse alustamise kuupäev],\">=\"&DATEVALUE(\" 1 \"&Kuuväljaminekute_kokkuvõte[[#Headers],[Detsember]]&_xlfn.SINGLE(_AASTA)),Muu[Tšeki taotluse alustamise kuupäev],\"<=\"&O$4)","v":{"v":0,"d":"0.00 €"}},{"$f":"SUM(Kuuväljaminekute_kokkuvõte[[#This Row],[Jaanuar]:[Detsember]])","v":{"v":0,"d":"0.00 €"}}]
[null,12000,"Sponsorlus",{"$f":"SUMIFS(Kuluartiklid[Tšeki summa],Kuluartiklid[PR kood],Kuuväljaminekute_kokkuvõte[[#This Row],[PR kood]],Kuluartiklid[Arve kuupäev],\">=\"&D$3,Kuluartiklid[Arve kuupäev],\"<=\"&D$4)+SUMIFS(Muu[Tšeki summa],Muu[PR kood],Kuuväljaminekute_kokkuvõte[[#This Row],[PR kood]],Muu[Tšeki taotluse alustamise kuupäev],\">=\"&DATEVALUE(\" 1 \"&Kuuväljaminekute_kokkuvõte[[#Headers],[Jaanuar]]&_xlfn.SINGLE(_AASTA)),Muu[Tšeki taotluse alustamise kuupäev],\"<=\"&D$4)","v":{"v":0,"d":"0.00 €"}},{"$f":"SUMIFS(Kuluartiklid[Tšeki summa],Kuluartiklid[PR kood],Kuuväljaminekute_kokkuvõte[[#This Row],[PR kood]],Kuluartiklid[Arve kuupäev],\">=\"&E$3,Kuluartiklid[Arve kuupäev],\"<=\"&E$4)+SUMIFS(Muu[Tšeki summa],Muu[PR kood],Kuuväljaminekute_kokkuvõte[[#This Row],[PR kood]],Muu[Tšeki taotluse alustamise kuupäev],\">=\"&DATEVALUE(\" 1 \"&Kuuväljaminekute_kokkuvõte[[#Headers],[Veebruar]]&_xlfn.SINGLE(_AASTA)),Muu[Tšeki taotluse alustamise kuupäev],\"<=\"&E$4)","v":{"v":0,"d":"0.00 €"}},{"$f":"SUMIFS(Kuluartiklid[Tšeki summa],Kuluartiklid[PR kood],Kuuväljaminekute_kokkuvõte[[#This Row],[PR kood]],Kuluartiklid[Arve kuupäev],\">=\"&F$3,Kuluartiklid[Arve kuupäev],\"<=\"&F$4)+SUMIFS(Muu[Tšeki summa],Muu[PR kood],Kuuväljaminekute_kokkuvõte[[#This Row],[PR kood]],Muu[Tšeki taotluse alustamise kuupäev],\">=\"&DATEVALUE(\" 1 \"&Kuuväljaminekute_kokkuvõte[[#Headers],[Märts]]&_xlfn.SINGLE(_AASTA)),Muu[Tšeki taotluse alustamise kuupäev],\"<=\"&F$4)","v":{"v":0,"d":"0.00 €"}},{"$f":"SUMIFS(Kuluartiklid[Tšeki summa],Kuluartiklid[PR kood],Kuuväljaminekute_kokkuvõte[[#This Row],[PR kood]],Kuluartiklid[Arve kuupäev],\">=\"&G$3,Kuluartiklid[Arve kuupäev],\"<=\"&G$4)+SUMIFS(Muu[Tšeki summa],Muu[PR kood],Kuuväljaminekute_kokkuvõte[[#This Row],[PR kood]],Muu[Tšeki taotluse alustamise kuupäev],\">=\"&DATEVALUE(\" 1 \"&Kuuväljaminekute_kokkuvõte[[#Headers],[Aprill]]&_xlfn.SINGLE(_AASTA)),Muu[Tšeki taotluse alustamise kuupäev],\"<=\"&G$4)","v":{"v":0,"d":"0.00 €"}},{"$f":"SUMIFS(Kuluartiklid[Tšeki summa],Kuluartiklid[PR kood],Kuuväljaminekute_kokkuvõte[[#This Row],[PR kood]],Kuluartiklid[Arve kuupäev],\">=\"&H$3,Kuluartiklid[Arve kuupäev],\"<=\"&H$4)+SUMIFS(Muu[Tšeki summa],Muu[PR kood],Kuuväljaminekute_kokkuvõte[[#This Row],[PR kood]],Muu[Tšeki taotluse alustamise kuupäev],\">=\"&DATEVALUE(\" 1 \"&Kuuväljaminekute_kokkuvõte[[#Headers],[Mai]]&_xlfn.SINGLE(_AASTA)),Muu[Tšeki taotluse alustamise kuupäev],\"<=\"&H$4)","v":{"v":0,"d":"0.00 €"}},{"$f":"SUMIFS(Kuluartiklid[Tšeki summa],Kuluartiklid[PR kood],Kuuväljaminekute_kokkuvõte[[#This Row],[PR kood]],Kuluartiklid[Arve kuupäev],\">=\"&I$3,Kuluartiklid[Arve kuupäev],\"<=\"&I$4)+SUMIFS(Muu[Tšeki summa],Muu[PR kood],Kuuväljaminekute_kokkuvõte[[#This Row],[PR kood]],Muu[Tšeki taotluse alustamise kuupäev],\">=\"&DATEVALUE(\" 1 \"&Kuuväljaminekute_kokkuvõte[[#Headers],[Juuni]]&_xlfn.SINGLE(_AASTA)),Muu[Tšeki taotluse alustamise kuupäev],\"<=\"&I$4)","v":{"v":0,"d":"0.00 €"}},{"$f":"SUMIFS(Kuluartiklid[Tšeki summa],Kuluartiklid[PR kood],Kuuväljaminekute_kokkuvõte[[#This Row],[PR kood]],Kuluartiklid[Arve kuupäev],\">=\"&J$3,Kuluartiklid[Arve kuupäev],\"<=\"&J$4)+SUMIFS(Muu[Tšeki summa],Muu[PR kood],Kuuväljaminekute_kokkuvõte[[#This Row],[PR kood]],Muu[Tšeki taotluse alustamise kuupäev],\">=\"&DATEVALUE(\" 1 \"&Kuuväljaminekute_kokkuvõte[[#Headers],[Juuli]]&_xlfn.SINGLE(_AASTA)),Muu[Tšeki taotluse alustamise kuupäev],\"<=\"&J$4)","v":{"v":0,"d":"0.00 €"}},{"$f":"SUMIFS(Kuluartiklid[Tšeki summa],Kuluartiklid[PR kood],Kuuväljaminekute_kokkuvõte[[#This Row],[PR kood]],Kuluartiklid[Arve kuupäev],\">=\"&K$3,Kuluartiklid[Arve kuupäev],\"<=\"&K$4)+SUMIFS(Muu[Tšeki summa],Muu[PR kood],Kuuväljaminekute_kokkuvõte[[#This Row],[PR kood]],Muu[Tšeki taotluse alustamise kuupäev],\">=\"&DATEVALUE(\" 1 \"&Kuuväljaminekute_kokkuvõte[[#Headers],[August]]&_xlfn.SINGLE(_AASTA)),Muu[Tšeki taotluse alustamise kuupäev],\"<=\"&K$4)","v":{"v":0,"d":"0.00 €"}},{"$f":"SUMIFS(Kuluartiklid[Tšeki summa],Kuluartiklid[PR kood],Kuuväljaminekute_kokkuvõte[[#This Row],[PR kood]],Kuluartiklid[Arve kuupäev],\">=\"&L$3,Kuluartiklid[Arve kuupäev],\"<=\"&L$4)+SUMIFS(Muu[Tšeki summa],Muu[PR kood],Kuuväljaminekute_kokkuvõte[[#This Row],[PR kood]],Muu[Tšeki taotluse alustamise kuupäev],\">=\"&DATEVALUE(\" 1 \"&Kuuväljaminekute_kokkuvõte[[#Headers],[September]]&_xlfn.SINGLE(_AASTA)),Muu[Tšeki taotluse alustamise kuupäev],\"<=\"&L$4)","v":{"v":0,"d":"0.00 €"}},{"$f":"SUMIFS(Kuluartiklid[Tšeki summa],Kuluartiklid[PR kood],Kuuväljaminekute_kokkuvõte[[#This Row],[PR kood]],Kuluartiklid[Arve kuupäev],\">=\"&M$3,Kuluartiklid[Arve kuupäev],\"<=\"&M$4)+SUMIFS(Muu[Tšeki summa],Muu[PR kood],Kuuväljaminekute_kokkuvõte[[#This Row],[PR kood]],Muu[Tšeki taotluse alustamise kuupäev],\">=\"&DATEVALUE(\" 1 \"&Kuuväljaminekute_kokkuvõte[[#Headers],[Oktoober]]&_xlfn.SINGLE(_AASTA)),Muu[Tšeki taotluse alustamise kuupäev],\"<=\"&M$4)","v":{"v":0,"d":"0.00 €"}},{"$f":"SUMIFS(Kuluartiklid[Tšeki summa],Kuluartiklid[PR kood],Kuuväljaminekute_kokkuvõte[[#This Row],[PR kood]],Kuluartiklid[Arve kuupäev],\">=\"&N$3,Kuluartiklid[Arve kuupäev],\"<=\"&N$4)+SUMIFS(Muu[Tšeki summa],Muu[PR kood],Kuuväljaminekute_kokkuvõte[[#This Row],[PR kood]],Muu[Tšeki taotluse alustamise kuupäev],\">=\"&DATEVALUE(\" 1 \"&Kuuväljaminekute_kokkuvõte[[#Headers],[November]]&_xlfn.SINGLE(_AASTA)),Muu[Tšeki taotluse alustamise kuupäev],\"<=\"&N$4)","v":{"v":0,"d":"0.00 €"}},{"$f":"SUMIFS(Kuluartiklid[Tšeki summa],Kuluartiklid[PR kood],Kuuväljaminekute_kokkuvõte[[#This Row],[PR kood]],Kuluartiklid[Arve kuupäev],\">=\"&O$3,Kuluartiklid[Arve kuupäev],\"<=\"&O$4)+SUMIFS(Muu[Tšeki summa],Muu[PR kood],Kuuväljaminekute_kokkuvõte[[#This Row],[PR kood]],Muu[Tšeki taotluse alustamise kuupäev],\">=\"&DATEVALUE(\" 1 \"&Kuuväljaminekute_kokkuvõte[[#Headers],[Detsember]]&_xlfn.SINGLE(_AASTA)),Muu[Tšeki taotluse alustamise kuupäev],\"<=\"&O$4)","v":{"v":0,"d":"0.00 €"}},{"$f":"SUM(Kuuväljaminekute_kokkuvõte[[#This Row],[Jaanuar]:[Detsember]])","v":{"v":0,"d":"0.00 €"}}]
[null,"Kokku",null,{"$f":"SUBTOTAL(109,Kuuväljaminekute_kokkuvõte[Jaanuar])","v":{"v":0,"d":"0.00 €"}},{"$f":"SUBTOTAL(109,Kuuväljaminekute_kokkuvõte[Veebruar])","v":{"v":0,"d":"0.00 €"}},{"$f":"SUBTOTAL(109,Kuuväljaminekute_kokkuvõte[Märts])","v":{"v":0,"d":"0.00 €"}},{"$f":"SUBTOTAL(109,Kuuväljaminekute_kokkuvõte[Aprill])","v":{"v":0,"d":"0.00 €"}},{"$f":"SUBTOTAL(109,Kuuväljaminekute_kokkuvõte[Mai])","v":{"v":0,"d":"0.00 €"}},{"$f":"SUBTOTAL(109,Kuuväljaminekute_kokkuvõte[Juuni])","v":{"v":0,"d":"0.00 €"}},{"$f":"SUBTOTAL(109,Kuuväljaminekute_kokkuvõte[Juuli])","v":{"v":0,"d":"0.00 €"}},{"$f":"SUBTOTAL(109,Kuuväljaminekute_kokkuvõte[August])","v":{"v":0,"d":"0.00 €"}},{"$f":"SUBTOTAL(109,Kuuväljaminekute_kokkuvõte[September])","v":{"v":0,"d":"0.00 €"}},{"$f":"SUBTOTAL(109,Kuuväljaminekute_kokkuvõte[Oktoober])","v":{"v":0,"d":"0.00 €"}},{"$f":"SUBTOTAL(109,Kuuväljaminekute_kokkuvõte[November])","v":{"v":0,"d":"0.00 €"}},{"$f":"SUBTOTAL(109,Kuuväljaminekute_kokkuvõte[Detsember])","v":{"v":0,"d":"0.00 €"}},{"$f":"SUBTOTAL(109,Kuuväljaminekute_kokkuvõte[Kokku])","v":{"v":0,"d":"0.00 €"}}]

{"sheet":"KULUARTIKLID","index":2,"n_rows":6,"n_cols":10,"rows_kept":6,"merged":[[1,1,1,9],[2,1,2,5],[2,6,2,9]]}
[null,"KUUVÄLJAMINEKUTE KOKKUVÕTE","HEATEGEVUS JA SPONSORLUS"]
[null,"KULUARTKLID"]
[null,"Selles lahtris on tükeldi andmete filtreerimiseks esitaja järgi ja parempoolses lahtris on tükeldi andmete filtreerimiseks makse saaja järgi.",{"$nulls":4},"Selles lahtris on tükeldi andmete filtreerimiseks makse saaja järgi."]
[null,"PR kood","Arve kuupäev","Arve nr","Esitaja","Tšeki summa","Makse saaja","Tšeki kasutus","Jaotusviis","Esitamise kuupäev"]
[null,1000,"Kuupäev",100,"Georg Kallas",{"v":750.75,"d":"750.75 €"},"Consolidated Messenger ","Meiler","Meil","Kuupäev"]
[null,7000,"Kuupäev",101,"Allan Paasuke",{"v":2500,"d":"2,500.00 €"},"A. Datum Corporation ","2 lauaarvutit","Krediit","Kuupäev"]

{"sheet":"HEATEGEVUS JA SPONSORLUS","index":3,"n_rows":6,"n_cols":12,"rows_kept":6,"merged":[[1,1,1,11],[2,1,2,5],[2,6,2,11]]}
[null,"KULUARTKLID"]
[null,"HEATEGEVUS JA SPONSORLUS"]
[null,"Selles lahtris on tükeldi andmete filtreerimiseks esitaja järgi ja parempoolses lahtris on tükeldi andmete filtreerimiseks makse saaja järgi.",{"$nulls":4},"Selles lahtris on tükeldi andmete filtreerimiseks makse saaja järgi."]
[null,"PR kood","Tšeki taotluse alustamise kuupäev","Esitaja","Tšeki summa","Eelmise aasta panus","Makse saaja","Sihtotstarve","Allkirjastaja","Kategooria","Jaotusviis","Esitamise kuupäev"]
[null,12000,"Kuupäev","Anu Parn",{"v":1000,"d":"1,000.00 €"},{"v":12,"d":"12.00 €"},"Kunstikool ","Stipendiumid","Heidi Koppel","Kunst","Tšekk","Kuupäev"]
[null,11000,"Kuupäev","Anu Parn",{"v":2500,"d":"2,500.00 €"},{"v":0,"d":"0.00 €"},"Wingtip Toys ","Kogukond","Aile Magi","Kogukond","Tšekk","Kuupäev"]